Workbook

Sheet Схема
A1: Файл скачан с сайта excel2.ru >>>
A2: Перейти к статье >>>
A3: Модель MS EXCEL выполнения заказа на производственной линии с произвольной схемой (задача 1.1)
H4: Стирает все результаты расчетов и статистику | I4: Стирает схему, результаты анализа схемы, все результаты расчетов, статистику и пользовательские настройки оборудования
K5: Заказ | L5: Изготовлено | N5: Начальное оборудование | O5: =COUNTIF(M24:M43,0) -> 3 | P5: д.б. от 1 до 5 (потребляет исходный материал)
J6: Колич-во шт | K6: 1500 | L6: =IF(ISTEXT(Буфер!W13),"",Буфер!W13) -> 1517 | N6: Продукт | O6: =COUNTIF(L24:L43,0)=1 -> TRUE | P6: ровно 1 продукт
J7: Средняя производительность схемы, шт/час | K7: =OrderNew/(L11-S21) -> 34.88372093 | N7: Кол-во Сборок | O7: =COUNTIF(M24:M43,">1") -> 2 | P7: добавляется столько же типов материалов
J8: с поправкой на время наработки НЗП от начального оборудования до конечного | N8: Проверка нач.об. | O8: =SUM(O24:O43)-COUNTIF(O24:O43,">0")+1=O5 -> TRUE | P8: Начального оборуд. д.б. больше на 1 чем сборок
N9: Всего единиц | O9: =COUNT(J24:J43) -> 10 | P9: Максимум 20
K10: Заказ изготовлен | L10: Статистика (среднее) | N10: Настройки оборуд. | O10: =IF(StandartEqSettingsFlag,TRUE,EqClear=EqCount) -> TRUE | P10: пользовательские настройки заполнены (лист оборудование)
J11: Срок исполнения заказа | K11: =ProdClear -> 48 | L11: =Статистика!B3 -> 48 | N11: Кол-во Нач.оборуд | O11: =O5<6 -> TRUE | P11: д.б. меньше 6
J12: Потребность в сырье1 | K12: 2400 | L12: =Статистика!D3 -> 2316 | N12: Проверка финальная | O12: =AND(N24:N43,O6,O8,O10,O11,SchFilled<=20) -> TRUE
J13: Потребность в сырье2 | K13: 2150 | L13: =Статистика!E3 -> 2264
J14: Потребность в сырье3 | K14: 2000 | L14: =Статистика!F3 -> 2146 | N14: Нач.строка | O14: =ROW(J23) -> 23
H15: FALSE | I15: TRUE | J15: Потребность в сырье4 | L15: =Статистика!G3 ->  | N15: Нач.столбец | O15: =COLUMN(J23) -> 10
J16: Потребность в сырье5 | L16: =Статистика!H3 -> 
J18: Кол-во циклов для набора статистики | K18: 300
J19: % выполнения | K19: 1
H20: Ср.производ.схемы, шт/час | I20: =IF(Progress=1,MAX(BottleNeckSearch),"") -> 38.46153846 | S20: Вычисление самой длинной последовательности
H21: Узкое место | I21: =IF(Progress=1,MATCH(MAX(BottleNeckSearch),BottleNeckSearch,0),"") -> 1 | J21: Результаты анализа схемы | S21: =MAX(T21:X21) -> 5 | T21: =IFERROR(MATCH(0,T24:T43,0)-2,0) -> 4 | U21: =IFERROR(MATCH(0,U24:U43,0)-2,0) -> 5 | V21: 3 | W21: 0 | X21: 0
K22: +1 | L22: +2 | M22: +3 | N22: +4 | O22: +5 | P22: +6 | Q22: +7
J23: № оборудования | K23: Последователь | L23: Число исх. | M23: Число входящих | N23: Проверка на соединение | O23: Проверка нач.об. | P23: # исх. Материала | Q23: Предшественники | S23: № | T23: Начало1 | U23: Начало2 | V23: Начало3 | W23: Начало4 | X23: Начало5
J24: 1 | K24: 2 | L24: 1 | M24: 1 | N24: =IF(ISBLANK(J24),"",OR(L24>0,M24>0)) -> TRUE | O24: =IF(M24>1,M24,0) -> 0 | P24: =COUNTIF($M$24:M24,0) -> 0 | Q24: 06 | S24: 1 | T24: =MATCH(0,M24:M43,0) -> 8 | U24: =MATCH(0,OFFSET($M$24,T24,,COUNT($M$24:$M$43)-T24),0)+T24 -> 9 | V24: =MATCH(0,OFFSET($M$24,U24,,COUNT($M$24:$M$43)-U24),0)+U24 -> 10 | W24: =MATCH(0,OFFSET($M$24,V24,,COUNT($M$24:$M$43)-V24),0)+V24 ->  | X24: =MATCH(0,OFFSET($M$24,W24,,COUNT($M$24:$M$43)-W24),0)+W24 -> 
J25: 2 | K25: 3 | L25: 1 | M25: 1 | N25: TRUE | O25: 0 | P25: =COUNTIF($M$24:M25,0) -> 0 | Q25: 01 | S25: 2 | T25: =VLOOKUP(T24,$J$24:$K$43,2,0) -> 7 | U25: =VLOOKUP(U24,$J$24:$K$43,2,0) -> 6 | V25: =VLOOKUP(V24,$J$24:$K$43,2,0) -> 4 | W25: =VLOOKUP(W24,$J$24:$K$43,2,0) -> 
J26: 3 | K26: 5 | L26: 1 | M26: 2 | N26: TRUE | O26: 2 | P26: =COUNTIF($M$24:M26,0) -> 0 | Q26: 0204 | S26: 3 | T26: =VLOOKUP(T25,$J$24:$K$43,2,0) -> 4 | U26: =VLOOKUP(U25,$J$24:$K$43,2,0) -> 1 | V26: =VLOOKUP(V25,$J$24:$K$43,2,0) -> 3 | W26: =VLOOKUP(W25,$J$24:$K$43,2,0) ->  | X26: =VLOOKUP(X25,$J$24:$K$43,2,0) -> 
J27: 4 | K27: 3 | L27: 1 | M27: 2 | N27: TRUE | O27: 2 | P27: =COUNTIF($M$24:M27,0) -> 0 | Q27: 0710 | S27: 4 | T27: =VLOOKUP(T26,$J$24:$K$43,2,0) -> 3 | U27: 2 | V27: 5
J28: 5 | K28: 0 | L28: 0 | M28: 1 | N28: TRUE | O28: 0 | P28: =COUNTIF($M$24:M28,0) -> 0 | Q28: 03 | S28: 5 | T28: 5 | U28: 3 | V28: 0
J29: 6 | K29: 1 | L29: 1 | M29: 1 | N29: TRUE | O29: 0 | P29: =COUNTIF($M$24:M29,0) -> 0 | Q29: 09 | S29: 6 | T29: 0 | U29: 5
B30: № Оборудования | D30: 5 | J30: 7 | K30: 4 | L30: 1 | M30: 1 | N30: TRUE | O30: 0 | P30: =COUNTIF($M$24:M30,0) -> 0 | Q30: 08 | S30: 7 | U30: 0
J31: 8 | K31: 7 | L31: 1 | M31: 0 | N31: TRUE | O31: 0 | P31: =COUNTIF($M$24:M31,0) -> 1 | S31: 8
J32: 9 | K32: 6 | L32: 1 | M32: 0 | N32: TRUE | O32: 0 | P32: =COUNTIF($M$24:M32,0) -> 2 | S32: 9
J33: 10 | K33: 4 | L33: 1 | M33: 0 | N33: TRUE | O33: 0 | P33: =COUNTIF($M$24:M33,0) -> 3 | S33: 10
O34: 0 | P34: =COUNTIF($M$24:M34,0) -> 3 | S34: 11
O35: 0 | P35: =COUNTIF($M$24:M35,0) -> 3 | S35: 12
N36: =IF(ISBLANK(J36),"",OR(L36>0,M36>0)) ->  | O36: 0 | P36: =COUNTIF($M$24:M36,0) -> 3 | S36: 13
O37: 0 | P37: =COUNTIF($M$24:M37,0) -> 3 | S37: 14
O38: 0 | P38: =COUNTIF($M$24:M38,0) -> 3 | S38: 15
O39: 0 | P39: =COUNTIF($M$24:M39,0) -> 3 | S39: 16
O40: 0 | P40: =COUNTIF($M$24:M40,0) -> 3 | S40: 17
N41: =IF(ISBLANK(J41),"",OR(L41>0,M41>0)) ->  | O41: =IF(M41>1,M41,0) -> 0 | P41: =COUNTIF($M$24:M41,0) -> 3 | S41: 18
O42: 0 | P42: =COUNTIF($M$24:M42,0) -> 3 | S42: 19
O43: 0 | P43: =COUNTIF($M$24:M43,0) -> 3 | S43: 20
J45: Занятость оборудования, час
B46: ="Оборудование №"&D30 -> Оборудование №5 | J46: =J23 -> № оборудования | K46: работа, ч | L46: поломка, ч | M46: простой, ч
B47: Показатель | C47: шт | D47: Смещение | E47: % | J47: =IF(ISNUMBER(J24),J24,"") -> 1 | K47: =IFERROR(OFFSET(Изготовлено!$A$11,,Схема!J47),"") -> 43 | L47: =IFERROR(OFFSET(Работа!$A$13,,Схема!J47),"") -> 0 | M47: =IFERROR($K$11-K47-L47,"") -> 5
B48: Мощность, шт | C48: =INDEX(Оборудование!B19:B38,Схема!D30)*K11 -> 2400 | J48: 2 | K48: =IFERROR(OFFSET(Изготовлено!$A$11,,Схема!J48),"") -> 42 | L48: =IFERROR(OFFSET(Работа!$A$13,,Схема!J48),"") -> 0 | M48: 6
B49: Изготовлено (до вычета брака) | C49: =OFFSET(Изготовлено!A13,,Схема!D30,) -> 1534 | E49: =C49/$C$48 -> 0.6391666667 | J49: 3 | K49: =IFERROR(OFFSET(Изготовлено!$A$11,,Схема!J49),"") -> 41 | L49: =IFERROR(OFFSET(Работа!$A$13,,Схема!J49),"") -> 0 | M49: 7
B50: Брак | C50: =OFFSET(Брак!A13,,Схема!D30,) -> 17 | D50: =C49-C50 -> 1517 | E50: =C50/$C$48 -> 0.007083333333 | J50: 4 | K50: =IFERROR(OFFSET(Изготовлено!$A$11,,Схема!J50),"") -> 38 | L50: =IFERROR(OFFSET(Работа!$A$13,,Схема!J50),"") -> 4 | M50: 6
B51: Потери из-за поломки | C51: =OFFSET(Работа!A9,,Схема!D30,) -> 0 | D51: =C49 -> 1534 | E51: 0 | J51: 5 | K51: =IFERROR(OFFSET(Изготовлено!$A$11,,Схема!J51),"") -> 40 | L51: =IFERROR(OFFSET(Работа!$A$13,,Схема!J51),"") -> 0 | M51: 8
B52: Потери из-за опустош. буфера | C52: =OFFSET(Потери.ПустойБуфер!A13,,Схема!D30,) -> 866 | D52: =D51+C51 -> 1534 | E52: =C52/$C$48 -> 0.3608333333 | J52: 6 | K52: =IFERROR(OFFSET(Изготовлено!$A$11,,Схема!J52),"") -> 41 | L52: =IFERROR(OFFSET(Работа!$A$13,,Схема!J52),"") -> 0 | M52: 7
E53: =E52+E51+E49 -> 1 | J53: 7 | K53: =IFERROR(OFFSET(Изготовлено!$A$11,,Схема!J53),"") -> 43 | L53: =IFERROR(OFFSET(Работа!$A$13,,Схема!J53),"") -> 4 | M53: 1
J54: 8 | K54: =IFERROR(OFFSET(Изготовлено!$A$11,,Схема!J54),"") -> 48 | L54: =IFERROR(OFFSET(Работа!$A$13,,Схема!J54),"") -> 0 | M54: 0
J55: 9 | K55: =IFERROR(OFFSET(Изготовлено!$A$11,,Схема!J55),"") -> 43 | L55: =IFERROR(OFFSET(Работа!$A$13,,Схема!J55),"") -> 5 | M55: 0
J56: 10 | K56: =IFERROR(OFFSET(Изготовлено!$A$11,,Схема!J56),"") -> 40 | L56: =IFERROR(OFFSET(Работа!$A$13,,Схема!J56),"") -> 3 | M56: 5
K57: =IFERROR(OFFSET(Изготовлено!$A$11,,Схема!J57),"") ->  | L57: =IFERROR(OFFSET(Работа!$A$13,,Схема!J57),"") -> 
K58: =IFERROR(OFFSET(Изготовлено!$A$11,,Схема!J58),"") ->  | L58: =IFERROR(OFFSET(Работа!$A$13,,Схема!J58),"") -> 
K59: =IFERROR(OFFSET(Изготовлено!$A$11,,Схема!J59),"") ->  | L59: =IFERROR(OFFSET(Работа!$A$13,,Схема!J59),"") -> 
K60: =IFERROR(OFFSET(Изготовлено!$A$11,,Схема!J60),"") ->  | L60: =IFERROR(OFFSET(Работа!$A$13,,Схема!J60),"") -> 
K61: =IFERROR(OFFSET(Изготовлено!$A$11,,Схема!J61),"") ->  | L61: =IFERROR(OFFSET(Работа!$A$13,,Схема!J61),"") -> 
K62: =IFERROR(OFFSET(Изготовлено!$A$11,,Схема!J62),"") ->  | L62: =IFERROR(OFFSET(Работа!$A$13,,Схема!J62),"") -> 
K63: =IFERROR(OFFSET(Изготовлено!$A$11,,Схема!J63),"") ->  | L63: =IFERROR(OFFSET(Работа!$A$13,,Схема!J63),"") -> 
K64: =IFERROR(OFFSET(Изготовлено!$A$11,,Схема!J64),"") ->  | L64: =IFERROR(OFFSET(Работа!$A$13,,Схема!J64),"") -> 
K65: =IFERROR(OFFSET(Изготовлено!$A$11,,Схема!J65),"") ->  | L65: =IFERROR(OFFSET(Работа!$A$13,,Схема!J65),"") -> 
K66: =IFERROR(OFFSET(Изготовлено!$A$11,,Схема!J66),"") ->  | L66: =IFERROR(OFFSET(Работа!$A$13,,Схема!J66),"") -> 

Sheet Оборудование
A1: Стандартные настройки для оборудования
B3: 1 | C3: 2 | D3: 3 | E3: 4 | F3: 5 | G3: 6
A4: Стандарт | B4: Мощность оборудования, шт в час | C4: Вероятность брака, % | D4: Вероятность простоя оборудования, % | E4: Простой оборудования - Минимум, час | F4: Простой оборудования - Максимум, час | G4: Критический уровень буфера, шт
A5: 1 | B5: 50 | C5: 0.02 | D5: 0.01 | E5: 3 | F5: 5 | G5: =B5*F5 -> 250
A15: Пользовательские настройки для оборудования | H15: % увеличения мощности оборудования (для определения узкого места системы)
A16: =COUNT(A19:A38) -> 10 | B16: =COUNT(B19:B38) -> 10 | H16: 0.5
A18: Оборудование | B18: Мощность оборудования, шт в час | C18: Вероятность брака, % | D18: Вероятность простоя оборудования, % | E18: Простой оборудования - Минимум, час | F18: Простой оборудования - Максимум, час | G18: Критический уровень буфера, шт | H18: ="Производительность системы при увеличении мощности ед.оборуд. на "&TEXT(H16,"0%") -> Производительность системы при увеличении мощности ед.оборуд. на 50% | J18: Начальное? | K18: Сборка? | L18: Конечное?
A19: =IF(Схема!J24,Схема!J24,"") -> 1 | B19: 40 | C19: 0.02 | D19: 0.01 | E19: 3 | F19: 5 | G19: =B19*F19 -> 200 | H19: 38.46153846 | J19: =IF(AND(ISNUMBER(A19),Схема!M24=0),TRUE,"") ->  | K19: =IF(AND(ISNUMBER(A19),Схема!M24>1),TRUE,"") ->  | L19: =IF(AND(ISNUMBER(A19),Схема!K24=0),TRUE,"") -> 
A20: =IF(Схема!J25,Схема!J25,"") -> 2 | B20: 50 | C20: 0.01 | D20: 0.01 | E20: 3 | F20: 5 | G20: 250 | H20: 34.88372093 | J20: =IF(AND(ISNUMBER(A20),Схема!M25=0),TRUE,"") ->  | K20: =IF(AND(ISNUMBER(A20),Схема!M25>1),TRUE,"") ->  | L20: =IF(AND(ISNUMBER(A20),Схема!K25=0),TRUE,"") -> 
A21: =IF(Схема!J26,Схема!J26,"") -> 3 | B21: 50 | C21: 0.01 | D21: 0.01 | E21: 2 | F21: 3 | G21: 150 | H21: 34.88372093 | J21: =IF(AND(ISNUMBER(A21),Схема!M26=0),TRUE,"") ->  | K21: =IF(AND(ISNUMBER(A21),Схема!M26>1),TRUE,"") -> TRUE | L21: =IF(AND(ISNUMBER(A21),Схема!K26=0),TRUE,"") -> 
A22: =IF(Схема!J27,Схема!J27,"") -> 4 | B22: 50 | C22: 0.02 | D22: 0.01 | E22: 3 | F22: 5 | G22: 250 | H22: 34.88372093 | J22: =IF(AND(ISNUMBER(A22),Схема!M27=0),TRUE,"") ->  | K22: =IF(AND(ISNUMBER(A22),Схема!M27>1),TRUE,"") -> TRUE | L22: =IF(AND(ISNUMBER(A22),Схема!K27=0),TRUE,"") -> 
A23: =IF(Схема!J28,Схема!J28,"") -> 5 | B23: 50 | C23: 0.01 | D23: 0.01 | E23: 3 | F23: 5 | G23: =B23*F23 -> 250 | H23: 34.88372093 | J23: =IF(AND(ISNUMBER(A23),Схема!M28=0),TRUE,"") ->  | K23: =IF(AND(ISNUMBER(A23),Схема!M28>1),TRUE,"") ->  | L23: =IF(AND(ISNUMBER(A23),Схема!K28=0),TRUE,"") -> TRUE
A24: =IF(Схема!J29,Схема!J29,"") -> 6 | B24: 50 | C24: 0.01 | D24: 0.01 | E24: 3 | F24: 5 | G24: =B24*F24 -> 250 | H24: 34.09090909 | J24: =IF(AND(ISNUMBER(A24),Схема!M29=0),TRUE,"") ->  | K24: =IF(AND(ISNUMBER(A24),Схема!M29>1),TRUE,"") ->  | L24: =IF(AND(ISNUMBER(A24),Схема!K29=0),TRUE,"") -> 
A25: =IF(Схема!J30,Схема!J30,"") -> 7 | B25: 50 | C25: 0.01 | D25: 0.01 | E25: 3 | F25: 5 | G25: 250 | H25: 34.88372093 | J25: =IF(AND(ISNUMBER(A25),Схема!M30=0),TRUE,"") ->  | K25: =IF(AND(ISNUMBER(A25),Схема!M30>1),TRUE,"") ->  | L25: =IF(AND(ISNUMBER(A25),Схема!K30=0),TRUE,"") -> 
A26: =IF(Схема!J31,Схема!J31,"") -> 8 | B26: 50 | C26: 0.01 | D26: 0.01 | E26: 3 | F26: 5 | G26: 250 | H26: 34.88372093 | J26: =IF(AND(ISNUMBER(A26),Схема!M31=0),TRUE,"") -> TRUE | K26: =IF(AND(ISNUMBER(A26),Схема!M31>1),TRUE,"") ->  | L26: =IF(AND(ISNUMBER(A26),Схема!K31=0),TRUE,"") -> 
A27: =IF(Схема!J32,Схема!J32,"") -> 9 | B27: 50 | C27: 0.01 | D27: 0.01 | E27: 3 | F27: 5 | G27: 250 | H27: 34.88372093 | J27: =IF(AND(ISNUMBER(A27),Схема!M32=0),TRUE,"") -> TRUE | K27: =IF(AND(ISNUMBER(A27),Схема!M32>1),TRUE,"") ->  | L27: =IF(AND(ISNUMBER(A27),Схема!K32=0),TRUE,"") -> 
A28: =IF(Схема!J33,Схема!J33,"") -> 10 | B28: 50 | C28: 0.01 | D28: 0.01 | E28: 3 | F28: 5 | G28: 250 | H28: 34.88372093 | J28: =IF(AND(ISNUMBER(A28),Схема!M33=0),TRUE,"") -> TRUE | K28: =IF(AND(ISNUMBER(A28),Схема!M33>1),TRUE,"") ->  | L28: =IF(AND(ISNUMBER(A28),Схема!K33=0),TRUE,"") -> 
A29: =IF(Схема!J34,Схема!J34,"") ->  | G29: 0 | J29: =IF(AND(ISNUMBER(A29),Схема!M34=0),TRUE,"") ->  | K29: =IF(AND(ISNUMBER(A29),Схема!M34>1),TRUE,"") ->  | L29: =IF(AND(ISNUMBER(A29),Схема!K34=0),TRUE,"") -> 
A30: =IF(Схема!J35,Схема!J35,"") ->  | G30: 0 | J30: =IF(AND(ISNUMBER(A30),Схема!M35=0),TRUE,"") ->  | K30: =IF(AND(ISNUMBER(A30),Схема!M35>1),TRUE,"") ->  | L30: =IF(AND(ISNUMBER(A30),Схема!K35=0),TRUE,"") -> 
A31: =IF(Схема!J36,Схема!J36,"") ->  | G31: 0 | J31: =IF(AND(ISNUMBER(A31),Схема!M36=0),TRUE,"") ->  | K31: =IF(AND(ISNUMBER(A31),Схема!M36>1),TRUE,"") ->  | L31: =IF(AND(ISNUMBER(A31),Схема!K36=0),TRUE,"") -> 
A32: =IF(Схема!J37,Схема!J37,"") ->  | G32: 0 | J32: =IF(AND(ISNUMBER(A32),Схема!M37=0),TRUE,"") ->  | K32: =IF(AND(ISNUMBER(A32),Схема!M37>1),TRUE,"") ->  | L32: =IF(AND(ISNUMBER(A32),Схема!K37=0),TRUE,"") -> 
A33: =IF(Схема!J38,Схема!J38,"") ->  | G33: 0 | J33: =IF(AND(ISNUMBER(A33),Схема!M38=0),TRUE,"") ->  | K33: =IF(AND(ISNUMBER(A33),Схема!M38>1),TRUE,"") ->  | L33: =IF(AND(ISNUMBER(A33),Схема!K38=0),TRUE,"") -> 
A34: =IF(Схема!J39,Схема!J39,"") ->  | G34: 0 | J34: =IF(AND(ISNUMBER(A34),Схема!M39=0),TRUE,"") ->  | K34: =IF(AND(ISNUMBER(A34),Схема!M39>1),TRUE,"") ->  | L34: =IF(AND(ISNUMBER(A34),Схема!K39=0),TRUE,"") -> 
A35: =IF(Схема!J40,Схема!J40,"") ->  | G35: 0 | J35: =IF(AND(ISNUMBER(A35),Схема!M40=0),TRUE,"") ->  | K35: =IF(AND(ISNUMBER(A35),Схема!M40>1),TRUE,"") ->  | L35: =IF(AND(ISNUMBER(A35),Схема!K40=0),TRUE,"") -> 
A36: =IF(Схема!J41,Схема!J41,"") ->  | G36: 0 | J36: =IF(AND(ISNUMBER(A36),Схема!M41=0),TRUE,"") ->  | K36: =IF(AND(ISNUMBER(A36),Схема!M41>1),TRUE,"") ->  | L36: =IF(AND(ISNUMBER(A36),Схема!K41=0),TRUE,"") -> 
A37: =IF(Схема!J42,Схема!J42,"") ->  | G37: 0 | J37: =IF(AND(ISNUMBER(A37),Схема!M42=0),TRUE,"") ->  | K37: =IF(AND(ISNUMBER(A37),Схема!M42>1),TRUE,"") ->  | L37: =IF(AND(ISNUMBER(A37),Схема!K42=0),TRUE,"") -> 
A38: =IF(Схема!J43,Схема!J43,"") ->  | G38: 0 | J38: =IF(AND(ISNUMBER(A38),Схема!M43=0),TRUE,"") ->  | K38: =IF(AND(ISNUMBER(A38),Схема!M43>1),TRUE,"") ->  | L38: =IF(AND(ISNUMBER(A38),Схема!K43=0),TRUE,"") -> 

Sheet Статистика
A1: Таблица статистики
B2: =B14 -> Время выполнения, часов | C2: Ст.отклонение | D2: =D14 -> Сырье1 | E2: =E14 -> Сырье2 | F2: Сырье3 | G2: Сырье4 | H2: Сырье5
A3: 0.5 | B3: =INT($K$22+C3*$K$23) -> 48 | C3: 0 | D3: =INT(K$43+$C3*K$44) -> 2316 | E3: =INT(L$43+$C3*L$44) -> 2264 | F3: =INT(M$43+$C3*M$44) -> 2146
A4: =+A3+34.1% -> 0.841 | B4: =INT($K$22+C4*$K$23) -> 52 | C4: 1 | D4: =INT(K$43+$C4*K$44) -> 2477 | E4: 2391 | F4: 2252
A5: =A4+13.6% -> 0.977 | B5: =INT($K$22+C5*$K$23) -> 55 | C5: 2 | D5: 2639 | E5: 2519 | F5: 2359
A6: =A5+2.1% -> 0.998 | B6: =INT($K$22+C6*$K$23) -> 58 | C6: 3 | D6: 2801 | E6: 2646 | F6: 2465
B8: количество суперциклов | C8: =COUNT(A15:A500) -> 300
B9: проверка исполнения заказа | C9: =COUNTIF(OFFSET(C15,,,StatCount),"<"&OrderNew) -> 0 | D9: должно быть 0 (значит заказ был выполнен при каждом суперцикле)
D13: Использовано исх.сырья, шт (изготовлено)
A14: № | B14: Время выполнения, часов | C14: Изготовлено, шт | D14: Сырье1 | E14: Сырье2 | F14: Сырье3 | G14: Сырье4 | H14: Сырье5
A15: 1 | B15: 48 | C15: 1522 | D15: 2300 | E15: 2200 | F15: 2200
A16: 2 | B16: 48 | C16: 1510 | D16: 2400 | E16: 2300 | F16: 2150
A17: 3 | B17: 46 | C17: 1500 | D17: 2150 | E17: 2300 | F17: 2100
A18: 4 | B18: 46 | C18: 1515 | D18: 2300 | E18: 2050 | F18: 1750
A19: 5 | B19: 47 | C19: 1512 | D19: 2350 | E19: 2050 | F19: 2200
A20: 6 | B20: 50 | C20: 1514 | D20: 2500 | E20: 2000 | F20: 2200 | J20: Числовые характеристики массива Время выполнения | K20: Значение | N20: № | O20: Интервалы | P20: Границы интервалов | Q20: Частота | R20: Частота2
A21: 7 | B21: 48 | C21: 1524 | D21: 2350 | E21: 2250 | F21: 2150 | J21: Количество | K21: =StatCount -> 300 | N21: 1 | O21: =K29 -> 44.5 | P21: ="<"&O21&"]" -> <44,5] | Q21: =FREQUENCY(Исходные_данные,O21:O38) -> 1 | R21: =(N21=$K$30)*Q21 -> 0
A22: 8 | B22: 45 | C22: 1516 | D22: 2250 | E22: 2250 | F22: 2150 | J22: Среднее | K22: =AVERAGE(Исходные_данные) -> 48.85333333 | N22: 2 | O22: =O21+$K$28 -> 45.5 | P22: ="("&O21&"-"&O22&"]" -> (44,5-45,5] | Q22: 63 | R22: 0
A23: 9 | B23: 46 | C23: 1526 | D23: 2300 | E23: 2050 | F23: 2000 | J23: Стандартное отклонение | K23: =_xlfn.STDEV.S(Исходные_данные) -> 3.351007769 | L23: =K23/K22 -> 0.06859322671 | N23: 3 | O23: 46.5 | P23: ="("&O22&"-"&O23&"]" -> (45,5-46,5] | Q23: 22 | R23: 0
A24: 10 | B24: 54 | C24: 1504 | D24: 2500 | E24: 2300 | F24: 2200 | J24: Минимальное | K24: =MIN(Исходные_данные) -> 44 | L24: =K22-K23*3 -> 38.80031003 | N24: 4 | O24: 47.5 | P24: (46,5-47,5] | Q24: 30 | R24: 0
A25: 11 | B25: 57 | C25: 1542 | D25: 2450 | E25: 2350 | F25: 2250 | J25: Максимальное | K25: =MAX(Исходные_данные) -> 62 | L25: =K22+K23*3 -> 58.90635664 | N25: 5 | O25: 48.5 | P25: (47,5-48,5] | Q25: 41 | R25: 41
A26: 12 | B26: 45 | C26: 1519 | D26: 2050 | E26: 2000 | F26: 2000 | J26: Число интервалов (карманов) | K26: =INT(SQRT(K21))+1 -> 18 | L26: =COUNT(N21:N38) -> 18 | N26: 6 | O26: 49.5 | P26: (48,5-49,5] | Q26: 30 | R26: 0
A27: 13 | B27: 51 | C27: 1546 | D27: 2550 | E27: 2100 | F27: 2200 | J27: Ширина интервала (точная) | K27: =(K25-K24)/K26 -> 1 | N27: 7 | O27: 50.5 | P27: (49,5-50,5] | Q27: 30 | R27: 0
A28: 14 | B28: 51 | C28: 1513 | D28: 2350 | E28: 2300 | F28: 2050 | J28: Ширина интервала (приблизит) | K28: =MROUND(K27,10^INT(LOG10(ABS(K27)))) -> 1 | N28: 8 | O28: 51.5 | P28: (50,5-51,5] | Q28: 25 | R28: 0
A29: 15 | B29: 50 | C29: 1535 | D29: 2400 | E29: 2350 | F29: 2200 | J29: Начало 1-го интервала | K29: =K24+K28/2 -> 44.5 | N29: 9 | O29: 52.5 | P29: (51,5-52,5] | Q29: 15 | R29: 0
A30: 16 | B30: 48 | C30: 1520 | D30: 2200 | E30: 2200 | F30: 1950 | J30: Карман со средним | K30: =MATCH(K22,O21:O38) -> 5 | N30: 10 | O30: 53.5 | P30: (52,5-53,5] | Q30: 13 | R30: 0
A31: 17 | B31: 48 | C31: 1545 | D31: 2400 | E31: 2300 | F31: 1950 | N31: 11 | O31: 54.5 | P31: (53,5-54,5] | Q31: 10 | R31: 0
A32: 18 | B32: 49 | C32: 1511 | D32: 2450 | E32: 2300 | F32: 2200 | N32: 12 | O32: 55.5 | P32: (54,5-55,5] | Q32: 8 | R32: 0
A33: 19 | B33: 48 | C33: 1518 | D33: 2400 | E33: 2400 | F33: 2200 | N33: 13 | O33: 56.5 | P33: (55,5-56,5] | Q33: 4 | R33: 0
A34: 20 | B34: 51 | C34: 1502 | D34: 2350 | E34: 2150 | F34: 2200 | N34: 14 | O34: 57.5 | P34: (56,5-57,5] | Q34: 2 | R34: 0
A35: 21 | B35: 54 | C35: 1520 | D35: 2500 | E35: 2300 | F35: 2200 | N35: 15 | O35: 58.5 | P35: (57,5-58,5] | Q35: 4 | R35: 0
A36: 22 | B36: 49 | C36: 1516 | D36: 2250 | E36: 2100 | F36: 2050 | N36: 16 | O36: 59.5 | P36: (58,5-59,5] | Q36: 0 | R36: 0
A37: 23 | B37: 51 | C37: 1536 | D37: 2450 | E37: 2300 | F37: 2150 | N37: 17 | O37: 60.5 | P37: (59,5-60,5] | Q37: 0 | R37: 0
A38: 24 | B38: 53 | C38: 1530 | D38: 2450 | E38: 2650 | F38: 2250 | N38: 18 | O38: 61.5 | P38: =">"&O37 -> >60,5 | Q38: 1 | R38: 0
A39: 25 | B39: 46 | C39: 1525 | D39: 2100 | E39: 2300 | F39: 2000
A40: 26 | B40: 45 | C40: 1525 | D40: 2250 | E40: 2250 | F40: 2150
A41: 27 | B41: 45 | C41: 1512 | D41: 1850 | E41: 2250 | F41: 2000
A42: 28 | B42: 45 | C42: 1526 | D42: 2250 | E42: 2250 | F42: 1950 | J42: Числовые характеристики массива Использовано сырья | K42: =D14 -> Сырье1 | L42: =E14 -> Сырье2 | M42: Сырье3 | N42: Сырье4 | O42: Сырье5
A43: 29 | B43: 45 | C43: 1520 | D43: 2100 | E43: 2250 | F43: 2150 | J43: Среднее | K43: =AVERAGE(OFFSET(D15,,,StatCount)) -> 2316.333333 | L43: =AVERAGE(OFFSET(E15,,,StatCount)) -> 2264.5 | M43: =AVERAGE(OFFSET(F15,,,StatCount)) -> 2146.666667 | N43: =AVERAGE(OFFSET(G15,,,StatCount)) ->  | O43: =AVERAGE(OFFSET(H15,,,StatCount)) -> 
A44: 30 | B44: 47 | C44: 1512 | D44: 2350 | E44: 2100 | F44: 2150 | J44: Стандартное отклонение | K44: =_xlfn.STDEV.S(OFFSET(D15,,,StatCount)) -> 161.5659848 | L44: =_xlfn.STDEV.S(OFFSET(E15,,,StatCount)) -> 127.4187393 | M44: =_xlfn.STDEV.S(OFFSET(F15,,,StatCount)) -> 106.1907583 | N44: =_xlfn.STDEV.S(OFFSET(G15,,,StatCount)) ->  | O44: =_xlfn.STDEV.S(OFFSET(H15,,,StatCount)) -> 
A45: 31 | B45: 45 | C45: 1525 | D45: 2250 | E45: 2200 | F45: 2200 | J45: Минимальное | K45: =MIN(OFFSET(D15,,,StatCount)) -> 1800 | L45: =MIN(OFFSET(E15,,,StatCount)) -> 1850 | M45: =MIN(OFFSET(F15,,,StatCount)) -> 1700 | N45: =MIN(OFFSET(G15,,,StatCount)) -> 0 | O45: =MIN(OFFSET(H15,,,StatCount)) -> 0
A46: 32 | B46: 45 | C46: 1524 | D46: 2250 | E46: 2250 | F46: 2200 | J46: Максимальное | K46: =MAX(OFFSET(D15,,,StatCount)) -> 2650 | L46: =MAX(OFFSET(E15,,,StatCount)) -> 2650 | M46: =MAX(OFFSET(F15,,,StatCount)) -> 2300 | N46: =MAX(OFFSET(G15,,,StatCount)) -> 0 | O46: =MAX(OFFSET(H15,,,StatCount)) -> 0
A47: 33 | B47: 45 | C47: 1523 | D47: 2250 | E47: 2250 | F47: 2200
A48: 34 | B48: 46 | C48: 1507 | D48: 2100 | E48: 2100 | F48: 2250
A49: 35 | B49: 53 | C49: 1524 | D49: 2500 | E49: 2350 | F49: 2200
A50: 36 | B50: 46 | C50: 1513 | D50: 2100 | E50: 1950 | F50: 2100
A51: 37 | B51: 45 | C51: 1527 | D51: 2150 | E51: 2250 | F51: 2000
A52: 38 | B52: 45 | C52: 1505 | D52: 2250 | E52: 2000 | F52: 2200
A53: 39 | B53: 51 | C53: 1544 | D53: 2300 | E53: 2450 | F53: 2300
A54: 40 | B54: 45 | C54: 1513 | D54: 2050 | E54: 2250 | F54: 1950
A55: 41 | B55: 45 | C55: 1520 | D55: 2100 | E55: 2250 | F55: 2100
A56: 42 | B56: 52 | C56: 1527 | D56: 2400 | E56: 2450 | F56: 2250
A57: 43 | B57: 50 | C57: 1502 | D57: 2500 | E57: 2300 | F57: 2050
A58: 44 | B58: 48 | C58: 1506 | D58: 1900 | E58: 2150 | F58: 2050
A59: 45 | B59: 53 | C59: 1516 | D59: 2450 | E59: 2250 | F59: 2200
A60: 46 | B60: 49 | C60: 1502 | D60: 2100 | E60: 2250 | F60: 2000
A61: 47 | B61: 49 | C61: 1503 | D61: 1950 | E61: 2450 | F61: 1700
A62: 48 | B62: 48 | C62: 1527 | D62: 2400 | E62: 2300 | F62: 2200
A63: 49 | B63: 45 | C63: 1509 | D63: 2000 | E63: 2250 | F63: 2000
A64: 50 | B64: 48 | C64: 1506 | D64: 2400 | E64: 2350 | F64: 2200
A65: 51 | B65: 55 | C65: 1545 | D65: 2350 | E65: 2600 | F65: 2000
A66: 52 | B66: 48 | C66: 1520 | D66: 2000 | E66: 2200 | F66: 1950
A67: 53 | B67: 56 | C67: 1506 | D67: 2400 | E67: 2400 | F67: 2200
A68: 54 | B68: 45 | C68: 1532 | D68: 2250 | E68: 2250 | F68: 1900
A69: 55 | B69: 45 | C69: 1510 | D69: 2250 | E69: 2250 | F69: 2200
A70: 56 | B70: 45 | C70: 1517 | D70: 2050 | E70: 2250 | F70: 2000
A71: 57 | B71: 50 | C71: 1501 | D71: 2500 | E71: 2200 | F71: 2200
A72: 58 | B72: 50 | C72: 1531 | D72: 2250 | E72: 2300 | F72: 2200
A73: 59 | B73: 50 | C73: 1520 | D73: 2350 | E73: 2250 | F73: 2000
A74: 60 | B74: 53 | C74: 1518 | D74: 2500 | E74: 2350 | F74: 2200
A75: 61 | B75: 48 | C75: 1528 | D75: 2400 | E75: 2300 | F75: 2250
A76: 62 | B76: 49 | C76: 1520 | D76: 2350 | E76: 1950 | F76: 2200
A77: 63 | B77: 49 | C77: 1525 | D77: 2350 | E77: 2350 | F77: 2050
A78: 64 | B78: 50 | C78: 1527 | D78: 2500 | E78: 2200 | F78: 2150
A79: 65 | B79: 50 | C79: 1516 | D79: 2250 | E79: 2300 | F79: 2150
A80: 66 | B80: 48 | C80: 1530 | D80: 2150 | E80: 2200 | F80: 2200
A81: 67 | B81: 54 | C81: 1532 | D81: 2500 | E81: 2300 | F81: 2200
A82: 68 | B82: 46 | C82: 1521 | D82: 2250 | E82: 2050 | F82: 2200
A83: 69 | B83: 58 | C83: 1509 | D83: 2600 | E83: 2450 | F83: 2300
A84: 70 | B84: 51 | C84: 1533 | D84: 2400 | E84: 2350 | F84: 2150
A85: 71 | B85: 47 | C85: 1528 | D85: 2350 | E85: 2350 | F85: 2100
A86: 72 | B86: 45 | C86: 1517 | D86: 2250 | E86: 2250 | F86: 2200
A87: 73 | B87: 45 | C87: 1513 | D87: 2250 | E87: 2000 | F87: 2100
A88: 74 | B88: 58 | C88: 1529 | D88: 2450 | E88: 2300 | F88: 2050
A89: 75 | B89: 50 | C89: 1527 | D89: 2300 | E89: 2300 | F89: 2000
A90: 76 | B90: 45 | C90: 1522 | D90: 2100 | E90: 2250 | F90: 2200
A91: 77 | B91: 50 | C91: 1548 | D91: 2500 | E91: 2400 | F91: 2250
A92: 78 | B92: 51 | C92: 1516 | D92: 2500 | E92: 2150 | F92: 2200
A93: 79 | B93: 51 | C93: 1528 | D93: 2300 | E93: 2300 | F93: 2200
A94: 80 | B94: 56 | C94: 1518 | D94: 2400 | E94: 2300 | F94: 2200
A95: 81 | B95: 45 | C95: 1521 | D95: 2250 | E95: 2000 | F95: 2150
A96: 82 | B96: 56 | C96: 1533 | D96: 2450 | E96: 2300 | F96: 2250
A97: 83 | B97: 58 | C97: 1548 | D97: 2550 | E97: 2500 | F97: 2250
A98: 84 | B98: 45 | C98: 1518 | D98: 2250 | E98: 2250 | F98: 2150
A99: 85 | B99: 49 | C99: 1533 | D99: 2450 | E99: 2150 | F99: 2250
A100: 86 | B100: 51 | C100: 1521 | D100: 2300 | E100: 2400 | F100: 1950
A101: 87 | B101: 45 | C101: 1527 | D101: 2250 | E101: 2250 | F101: 2200
A102: 88 | B102: 48 | C102: 1546 | D102: 2400 | E102: 2350 | F102: 2200
A103: 89 | B103: 45 | C103: 1505 | D103: 2250 | E103: 2100 | F103: 2150
A104: 90 | B104: 45 | C104: 1526 | D104: 2050 | E104: 2250 | F104: 2000
A105: 91 | B105: 47 | C105: 1532 | D105: 2200 | E105: 2350 | F105: 2200
A106: 92 | B106: 50 | C106: 1514 | D106: 2300 | E106: 2300 | F106: 2150
A107: 93 | B107: 47 | C107: 1507 | D107: 2300 | E107: 2350 | F107: 2250
A108: 94 | B108: 52 | C108: 1530 | D108: 2200 | E108: 2300 | F108: 2200
A109: 95 | B109: 51 | C109: 1545 | D109: 2400 | E109: 2550 | F109: 2300
A110: 96 | B110: 54 | C110: 1537 | D110: 2550 | E110: 2500 | F110: 2000
A111: 97 | B111: 48 | C111: 1539 | D111: 2200 | E111: 2400 | F111: 2200
A112: 98 | B112: 48 | C112: 1509 | D112: 2400 | E112: 2400 | F112: 2200
A113: 99 | B113: 50 | C113: 1518 | D113: 2500 | E113: 2350 | F113: 2200
A114: 100 | B114: 45 | C114: 1527 | D114: 2050 | E114: 2250 | F114: 2200
A115: 101 | B115: 47 | C115: 1524 | D115: 2350 | E115: 2250 | F115: 2200
A116: 102 | B116: 47 | C116: 1502 | D116: 2250 | E116: 2050 | F116: 2150
A117: 103 | B117: 47 | C117: 1512 | D117: 2200 | E117: 2350 | F117: 2150
A118: 104 | B118: 52 | C118: 1531 | D118: 2600 | E118: 2450 | F118: 2250
A119: 105 | B119: 52 | C119: 1502 | D119: 2150 | E119: 2350 | F119: 2200
A120: 106 | B120: 47 | C120: 1502 | D120: 2350 | E120: 2200 | F120: 2200
A121: 107 | B121: 48 | C121: 1516 | D121: 2400 | E121: 2200 | F121: 2250
A122: 108 | B122: 49 | C122: 1523 | D122: 2450 | E122: 2300 | F122: 2150
A123: 109 | B123: 45 | C123: 1524 | D123: 2250 | E123: 2100 | F123: 2200
A124: 110 | B124: 47 | C124: 1535 | D124: 2350 | E124: 2300 | F124: 2200
A125: 111 | B125: 53 | C125: 1534 | D125: 2300 | E125: 2350 | F125: 1950
A126: 112 | B126: 45 | C126: 1530 | D126: 2250 | E126: 2250 | F126: 2150
A127: 113 | B127: 48 | C127: 1525 | D127: 2400 | E127: 2200 | F127: 2200
A128: 114 | B128: 52 | C128: 1537 | D128: 2600 | E128: 2200 | F128: 2300
A129: 115 | B129: 45 | C129: 1515 | D129: 1800 | E129: 2250 | F129: 1950
A130: 116 | B130: 45 | C130: 1505 | D130: 1800 | E130: 2250 | F130: 1950
A131: 117 | B131: 46 | C131: 1512 | D131: 2300 | E131: 2150 | F131: 1950
A132: 118 | B132: 47 | C132: 1522 | D132: 2150 | E132: 2300 | F132: 2100
A133: 119 | B133: 53 | C133: 1530 | D133: 2500 | E133: 2350 | F133: 2200
A134: 120 | B134: 47 | C134: 1508 | D134: 2150 | E134: 2150 | F134: 2150
A135: 121 | B135: 45 | C135: 1531 | D135: 2250 | E135: 2250 | F135: 2200
A136: 122 | B136: 51 | C136: 1521 | D136: 2500 | E136: 2300 | F136: 2200
A137: 123 | B137: 45 | C137: 1515 | D137: 2000 | E137: 2000 | F137: 2150
A138: 124 | B138: 45 | C138: 1521 | D138: 2050 | E138: 2250 | F138: 2150
A139: 125 | B139: 47 | C139: 1540 | D139: 2200 | E139: 2000 | F139: 2200
A140: 126 | B140: 48 | C140: 1530 | D140: 2250 | E140: 2250 | F140: 2150
A141: 127 | B141: 45 | C141: 1512 | D141: 2250 | E141: 2250 | F141: 2200
A142: 128 | B142: 46 | C142: 1509 | D142: 2300 | E142: 2300 | F142: 1950
A143: 129 | B143: 49 | C143: 1515 | D143: 2200 | E143: 2100 | F143: 1950
A144: 130 | B144: 48 | C144: 1516 | D144: 2400 | E144: 2400 | F144: 2200
A145: 131 | B145: 48 | C145: 1528 | D145: 2250 | E145: 2150 | F145: 2200
A146: 132 | B146: 55 | C146: 1535 | D146: 2550 | E146: 2350 | F146: 2250
A147: 133 | B147: 53 | C147: 1535 | D147: 2000 | E147: 2100 | F147: 1950
A148: 134 | B148: 45 | C148: 1503 | D148: 2250 | E148: 2250 | F148: 2200
A149: 135 | B149: 45 | C149: 1538 | D149: 2050 | E149: 2250 | F149: 1950
A150: 136 | B150: 49 | C150: 1521 | D150: 2450 | E150: 2300 | F150: 2200
A151: 137 | B151: 50 | C151: 1525 | D151: 2350 | E151: 2150 | F151: 2050
A152: 138 | B152: 52 | C152: 1538 | D152: 2500 | E152: 2350 | F152: 2250
A153: 139 | B153: 49 | C153: 1501 | D153: 2300 | E153: 2150 | F153: 2200
A154: 140 | B154: 51 | C154: 1533 | D154: 2200 | E154: 2450 | F154: 2000
A155: 141 | B155: 45 | C155: 1521 | D155: 2250 | E155: 2050 | F155: 1950
A156: 142 | B156: 48 | C156: 1514 | D156: 2350 | E156: 2250 | F156: 1850
A157: 143 | B157: 45 | C157: 1514 | D157: 2250 | E157: 2250 | F157: 2150
A158: 144 | B158: 54 | C158: 1526 | D158: 2500 | E158: 2300 | F158: 2200
A159: 145 | B159: 48 | C159: 1522 | D159: 2350 | E159: 2300 | F159: 2200
A160: 146 | B160: 49 | C160: 1524 | D160: 2450 | E160: 2250 | F160: 2200
A161: 147 | B161: 48 | C161: 1513 | D161: 2400 | E161: 2350 | F161: 2200
A162: 148 | B162: 61 | C162: 1510 | D162: 2450 | E162: 2200 | F162: 2150
A163: 149 | B163: 54 | C163: 1548 | D163: 2500 | E163: 2550 | F163: 2300
A164: 150 | B164: 45 | C164: 1527 | D164: 2250 | E164: 2250 | F164: 1900
A165: 151 | B165: 48 | C165: 1507 | D165: 2150 | E165: 2200 | F165: 2050
A166: 152 | B166: 47 | C166: 1538 | D166: 2350 | E166: 2350 | F166: 2200
A167: 153 | B167: 45 | C167: 1505 | D167: 2250 | E167: 2250 | F167: 2150
A168: 154 | B168: 51 | C168: 1530 | D168: 2400 | E168: 2300 | F168: 2250
A169: 155 | B169: 49 | C169: 1505 | D169: 2450 | E169: 2350 | F169: 2250
A170: 156 | B170: 47 | C170: 1516 | D170: 2200 | E170: 2200 | F170: 2200
A171: 157 | B171: 45 | C171: 1517 | D171: 2250 | E171: 2200 | F171: 2200
A172: 158 | B172: 52 | C172: 1510 | D172: 2500 | E172: 2250 | F172: 2150
A173: 159 | B173: 53 | C173: 1517 | D173: 2550 | E173: 2450 | F173: 2250
A174: 160 | B174: 48 | C174: 1507 | D174: 2400 | E174: 1900 | F174: 2050
A175: 161 | B175: 47 | C175: 1547 | D175: 2350 | E175: 2200 | F175: 2250
A176: 162 | B176: 49 | C176: 1518 | D176: 2450 | E176: 2300 | F176: 2250
A177: 163 | B177: 50 | C177: 1528 | D177: 2300 | E177: 2250 | F177: 2100
A178: 164 | B178: 48 | C178: 1500 | D178: 2250 | E178: 1950 | F178: 2250
A179: 165 | B179: 45 | C179: 1521 | D179: 2250 | E179: 2250 | F179: 2200
A180: 166 | B180: 52 | C180: 1501 | D180: 2350 | E180: 2350 | F180: 2200
A181: 167 | B181: 48 | C181: 1539 | D181: 2400 | E181: 2150 | F181: 2250
A182: 168 | B182: 45 | C182: 1512 | D182: 2250 | E182: 2200 | F182: 2100
A183: 169 | B183: 50 | C183: 1515 | D183: 2500 | E183: 2300 | F183: 2200
A184: 170 | B184: 47 | C184: 1501 | D184: 2200 | E184: 2100 | F184: 2150
A185: 171 | B185: 47 | C185: 1512 | D185: 2350 | E185: 2350 | F185: 2150
A186: 172 | B186: 50 | C186: 1508 | D186: 2250 | E186: 2350 | F186: 2200
A187: 173 | B187: 53 | C187: 1522 | D187: 2400 | E187: 2100 | F187: 2150
A188: 174 | B188: 52 | C188: 1533 | D188: 2400 | E188: 2450 | F188: 2100
A189: 175 | B189: 51 | C189: 1511 | D189: 2400 | E189: 2350 | F189: 1850
A190: 176 | B190: 62 | C190: 1528 | D190: 2550 | E190: 2450 | F190: 2300
A191: 177 | B191: 50 | C191: 1529 | D191: 2250 | E191: 2300 | F191: 2200
A192: 178 | B192: 53 | C192: 1529 | D192: 2550 | E192: 2400 | F192: 2250
A193: 179 | B193: 50 | C193: 1502 | D193: 2450 | E193: 2050 | F193: 2200
A194: 180 | B194: 51 | C194: 1521 | D194: 2500 | E194: 2350 | F194: 2200
A195: 181 | B195: 55 | C195: 1537 | D195: 2350 | E195: 2350 | F195: 2200
A196: 182 | B196: 54 | C196: 1547 | D196: 2650 | E196: 2400 | F196: 2300
A197: 183 | B197: 50 | C197: 1534 | D197: 2500 | E197: 2500 | F197: 2300
A198: 184 | B198: 45 | C198: 1524 | D198: 2100 | E198: 2100 | F198: 2100
A199: 185 | B199: 45 | C199: 1521 | D199: 2250 | E199: 2250 | F199: 2000
A200: 186 | B200: 50 | C200: 1502 | D200: 2500 | E200: 2350 | F200: 2250
A201: 187 | B201: 45 | C201: 1509 | D201: 2000 | E201: 2250 | F201: 2100
A202: 188 | B202: 46 | C202: 1516 | D202: 2050 | E202: 2300 | F202: 1950
A203: 189 | B203: 45 | C203: 1523 | D203: 2250 | E203: 2250 | F203: 2000
A204: 190 | B204: 46 | C204: 1535 | D204: 2300 | E204: 2300 | F204: 2200
... 110 more rows

Sheet Изготовлено
A1: Детализация работы оборудования
A2: Изготовленное количество (до разбраковки, т.е. до вычета бракованных)
A11: Кол-во рабочих часов, ч | B11: =COUNTIF(OFFSET(B16,,,ProdClear),">"&0) -> 43 | C11: 42 | D11: 41 | E11: 38 | F11: 40 | G11: 41 | H11: 43 | I11: 48 | J11: 43 | K11: 40 | L11: 0 | M11: 0 | N11: 0 | O11: 0 | P11: 0 | Q11: 0 | R11: 0 | S11: 0 | T11: 0 | U11: 0
A13: всего | B13: =SUM(OFFSET(B16,,,StatCount)) -> 1718 | C13: 1645 | D13: 1590 | E13: 1872 | F13: 1534 | G13: 2027 | H13: 2138 | I13: 2400 | J13: 2150 | K13: 2000 | L13: 0 | M13: 0 | N13: 0 | O13: 0 | P13: 0 | Q13: 0 | R13: 0 | S13: 0 | T13: 0 | U13: 0
A14: =COUNTA(A16:A10006) -> 48
A15: Час | B15: Изг. #1 | C15: Изг. #2 | D15: Изг. #3 | E15: Изг. #4 | F15: Изг. #5 | G15: Изг. #6 | H15: Изг. #7 | I15: Изг. #8 | J15: Изг. #9 | K15: Изг. #10 | L15: Изг. #11 | M15: Изг. #12 | N15: Изг. #13 | O15: Изг. #14 | P15: Изг. #15 | Q15: Изг. #16 | R15: Изг. #17 | S15: Изг. #18 | T15: Изг. #19 | U15: Изг. #20
A16: 1 | B16: 0 | C16: 0 | D16: 0 | E16: 0 | F16: 0 | G16: 0 | H16: 0 | I16: 50 | J16: 50 | K16: 50
A17: 2 | B17: 0 | C17: 0 | D17: 0 | E17: 0 | F17: 0 | G17: 49 | H17: 47 | I17: 50 | J17: 50 | K17: 50
A18: 3 | B18: 40 | C18: 0 | D18: 0 | E18: 46 | F18: 0 | G18: 49 | H18: 48 | I18: 50 | J18: 50 | K18: 50
A19: 4 | B19: 40 | C19: 38 | D19: 0 | E19: 47 | F19: 0 | G19: 49 | H19: 50 | I19: 50 | J19: 50 | K19: 50
A20: 5 | B20: 40 | C20: 39 | D20: 38 | E20: 50 | F20: 0 | G20: 50 | H20: 49 | I20: 50 | J20: 50 | K20: 50
A21: 6 | B21: 40 | C21: 39 | D21: 38 | E21: 49 | F21: 38 | G21: 50 | H21: 50 | I21: 50 | J21: 50 | K21: 50
A22: 7 | B22: 40 | C22: 40 | D22: 39 | E22: 49 | F22: 38 | G22: 50 | H22: 50 | I22: 50 | J22: 50 | K22: 50
A23: 8 | B23: 40 | C23: 39 | D23: 37 | E23: 49 | F23: 39 | G23: 48 | H23: 49 | I23: 50 | J23: 50 | K23: 50
A24: 9 | B24: 40 | C24: 40 | D24: 39 | E24: 48 | F24: 36 | G24: 49 | H24: 49 | I24: 50 | J24: 50 | K24: 50
A25: 10 | B25: 40 | C25: 40 | D25: 39 | E25: 48 | F25: 38 | G25: 48 | H25: 49 | I25: 50 | J25: 0 | K25: 50
A26: 11 | B26: 40 | C26: 40 | D26: 40 | E26: 49 | F26: 39 | G26: 0 | H26: 49 | I26: 50 | J26: 0 | K26: 50
A27: 12 | B27: 40 | C27: 40 | D27: 38 | E27: 49 | F27: 40 | G27: 0 | H27: 49 | I27: 50 | J27: 0 | K27: 50
A28: 13 | B28: 38 | C28: 39 | D28: 40 | E28: 49 | F28: 37 | G28: 0 | H28: 50 | I28: 50 | J28: 0 | K28: 50
A29: 14 | B29: 0 | C29: 38 | D29: 39 | E29: 49 | F29: 40 | G29: 0 | H29: 49 | I29: 50 | J29: 0 | K29: 50
A30: 15 | B30: 0 | C30: 0 | D30: 38 | E30: 48 | F30: 39 | G30: 0 | H30: 50 | I30: 50 | J30: 50 | K30: 50
A31: 16 | B31: 0 | C31: 0 | D31: 0 | E31: 50 | F31: 37 | G31: 49 | H31: 50 | I31: 50 | J31: 50 | K31: 50
A32: 17 | B32: 40 | C32: 0 | D32: 0 | E32: 50 | F32: 0 | G32: 49 | H32: 0 | I32: 50 | J32: 50 | K32: 50
A33: 18 | B33: 40 | C33: 39 | D33: 0 | E33: 0 | F33: 0 | G33: 50 | H33: 0 | I33: 50 | J33: 50 | K33: 50
A34: 19 | B34: 40 | C34: 40 | D34: 39 | E34: 0 | F34: 0 | G34: 50 | H34: 0 | I34: 50 | J34: 50 | K34: 50
A35: 20 | B35: 40 | C35: 40 | D35: 40 | E35: 0 | F35: 39 | G35: 50 | H35: 0 | I35: 50 | J35: 50 | K35: 50
A36: 21 | B36: 40 | C36: 40 | D36: 40 | E36: 0 | F36: 40 | G36: 50 | H36: 50 | I36: 50 | J36: 50 | K36: 0
A37: 22 | B37: 40 | C37: 40 | D37: 39 | E37: 50 | F37: 40 | G37: 49 | H37: 50 | I37: 50 | J37: 50 | K37: 50
A38: 23 | B38: 40 | C38: 40 | D38: 40 | E38: 48 | F38: 39 | G38: 50 | H38: 50 | I38: 50 | J38: 50 | K38: 50
A39: 24 | B39: 40 | C39: 38 | D39: 39 | E39: 49 | F39: 40 | G39: 50 | H39: 50 | I39: 50 | J39: 50 | K39: 50
A40: 25 | B40: 40 | C40: 40 | D40: 38 | E40: 49 | F40: 39 | G40: 49 | H40: 50 | I40: 50 | J40: 50 | K40: 50
A41: 26 | B41: 40 | C41: 40 | D41: 40 | E41: 48 | F41: 38 | G41: 49 | H41: 50 | I41: 50 | J41: 50 | K41: 50
A42: 27 | B42: 40 | C42: 39 | D42: 40 | E42: 48 | F42: 39 | G42: 49 | H42: 50 | I42: 50 | J42: 50 | K42: 50
A43: 28 | B43: 40 | C43: 39 | D43: 39 | E43: 0 | F43: 40 | G43: 49 | H43: 50 | I43: 50 | J43: 50 | K43: 0
A44: 29 | B44: 40 | C44: 40 | D44: 39 | E44: 0 | F44: 37 | G44: 50 | H44: 50 | I44: 50 | J44: 50 | K44: 0
A45: 30 | B45: 40 | C45: 40 | D45: 40 | E45: 0 | F45: 39 | G45: 48 | H45: 50 | I45: 50 | J45: 50 | K45: 0
A46: 31 | B46: 40 | C46: 38 | D46: 40 | E46: 0 | F46: 40 | G46: 50 | H46: 50 | I46: 50 | J46: 50 | K46: 0
A47: 32 | B47: 40 | C47: 40 | D47: 37 | E47: 50 | F47: 39 | G47: 49 | H47: 50 | I47: 50 | J47: 50 | K47: 50
A48: 33 | B48: 40 | C48: 38 | D48: 40 | E48: 50 | F48: 37 | G48: 50 | H48: 50 | I48: 50 | J48: 50 | K48: 50
A49: 34 | B49: 40 | C49: 38 | D49: 38 | E49: 50 | F49: 40 | G49: 50 | H49: 50 | I49: 50 | J49: 50 | K49: 50
A50: 35 | B50: 40 | C50: 39 | D50: 38 | E50: 50 | F50: 38 | G50: 49 | H50: 50 | I50: 50 | J50: 50 | K50: 50
A51: 36 | B51: 40 | C51: 39 | D51: 38 | E51: 50 | F51: 37 | G51: 50 | H51: 50 | I51: 50 | J51: 50 | K51: 50
A52: 37 | B52: 40 | C52: 38 | D52: 38 | E52: 50 | F52: 37 | G52: 50 | H52: 50 | I52: 50 | J52: 50 | K52: 50
A53: 38 | B53: 40 | C53: 39 | D53: 37 | E53: 50 | F53: 38 | G53: 49 | H53: 50 | I53: 50 | J53: 50 | K53: 50
A54: 39 | B54: 40 | C54: 38 | D54: 39 | E54: 50 | F54: 36 | G54: 48 | H54: 50 | I54: 50 | J54: 50 | K54: 50
A55: 40 | B55: 40 | C55: 40 | D55: 38 | E55: 50 | F55: 38 | G55: 50 | H55: 50 | I55: 50 | J55: 50 | K55: 50
A56: 41 | B56: 40 | C56: 40 | D56: 39 | E56: 50 | F56: 38 | G56: 50 | H56: 50 | I56: 50 | J56: 50 | K56: 50
A57: 42 | B57: 40 | C57: 37 | D57: 40 | E57: 50 | F57: 37 | G57: 49 | H57: 50 | I57: 50 | J57: 50 | K57: 50
A58: 43 | B58: 40 | C58: 40 | D58: 36 | E58: 50 | F58: 40 | G58: 50 | H58: 50 | I58: 50 | J58: 50 | K58: 50
A59: 44 | B59: 40 | C59: 38 | D59: 40 | E59: 50 | F59: 36 | G59: 50 | H59: 50 | I59: 50 | J59: 50 | K59: 50
A60: 45 | B60: 40 | C60: 40 | D60: 38 | E60: 50 | F60: 39 | G60: 0 | H60: 50 | I60: 50 | J60: 50 | K60: 0
A61: 46 | B61: 40 | C61: 39 | D61: 40 | E61: 50 | F61: 38 | G61: 50 | H61: 50 | I61: 50 | J61: 50 | K61: 0
A62: 47 | B62: 40 | C62: 38 | D62: 38 | E62: 50 | F62: 39 | G62: 50 | H62: 50 | I62: 50 | J62: 50 | K62: 0
A63: 48 | B63: 40 | C63: 39 | D63: 38 | E63: 50 | F63: 36 | G63: 50 | H63: 50 | I63: 50 | J63: 50 | K63: 50

Sheet Буфер
A1: Детализация работы оборудования
A2: Состояние буфера оборудования на конец часа
A3: Буфер оборудования: в него оборудование кладет изготовленный материал, а последующее оборудование - забирает
A9: Макс | B9: =MAX(B16:B1016) -> 40 | C9: 40 | D9: 40 | E9: 286 | F9: 1517 | G9: 291 | H9: 245 | I9: 249 | J9: 99 | K9: 268 | L9: 0 | M9: 0 | N9: 0 | O9: 0 | P9: 0 | Q9: 0 | R9: 0 | S9: 0 | T9: 0 | U9: 0
A10: =COUNTA(A16:A10006) -> 48
A11: Конечное? | B11: =IF(AND(ISNUMBER(B16),OFFSET(Схема!$K$23,Буфер!B14,)=0),TRUE,"") ->  | C11: =IF(AND(ISNUMBER(C16),OFFSET(Схема!$K$23,Буфер!C14,)=0),TRUE,"") ->  | D11: =IF(AND(ISNUMBER(D16),OFFSET(Схема!$K$23,Буфер!D14,)=0),TRUE,"") ->  | E11: =IF(AND(ISNUMBER(E16),OFFSET(Схема!$K$23,Буфер!E14,)=0),TRUE,"") ->  | F11: =IF(AND(ISNUMBER(F16),OFFSET(Схема!$K$23,Буфер!F14,)=0),TRUE,"") -> TRUE | G11: =IF(AND(ISNUMBER(G16),OFFSET(Схема!$K$23,Буфер!G14,)=0),TRUE,"") ->  | H11: =IF(AND(ISNUMBER(H16),OFFSET(Схема!$K$23,Буфер!H14,)=0),TRUE,"") ->  | I11: =IF(AND(ISNUMBER(I16),OFFSET(Схема!$K$23,Буфер!I14,)=0),TRUE,"") ->  | J11: =IF(AND(ISNUMBER(J16),OFFSET(Схема!$K$23,Буфер!J14,)=0),TRUE,"") ->  | K11: =IF(AND(ISNUMBER(K16),OFFSET(Схема!$K$23,Буфер!K14,)=0),TRUE,"") ->  | L11: =IF(AND(ISNUMBER(L16),OFFSET(Схема!$K$23,Буфер!L14,)=0),TRUE,"") ->  | M11: =IF(AND(ISNUMBER(M16),OFFSET(Схема!$K$23,Буфер!M14,)=0),TRUE,"") ->  | N11: =IF(AND(ISNUMBER(N16),OFFSET(Схема!$K$23,Буфер!N14,)=0),TRUE,"") ->  | O11: =IF(AND(ISNUMBER(O16),OFFSET(Схема!$K$23,Буфер!O14,)=0),TRUE,"") ->  | P11: =IF(AND(ISNUMBER(P16),OFFSET(Схема!$K$23,Буфер!P14,)=0),TRUE,"") ->  | Q11: =IF(AND(ISNUMBER(Q16),OFFSET(Схема!$K$23,Буфер!Q14,)=0),TRUE,"") ->  | R11: =IF(AND(ISNUMBER(R16),OFFSET(Схема!$K$23,Буфер!R14,)=0),TRUE,"") ->  | S11: =IF(AND(ISNUMBER(S16),OFFSET(Схема!$K$23,Буфер!S14,)=0),TRUE,"") ->  | T11: =IF(AND(ISNUMBER(T16),OFFSET(Схема!$K$23,Буфер!T14,)=0),TRUE,"") ->  | U11: =IF(AND(ISNUMBER(U16),OFFSET(Схема!$K$23,Буфер!U14,)=0),TRUE,"") -> 
A12: Сборка? | B12: =IF(AND(ISNUMBER(B16),OFFSET(Схема!$M$23,Буфер!B14,)>1),TRUE,"") ->  | C12: =IF(AND(ISNUMBER(C16),OFFSET(Схема!$M$23,Буфер!C14,)>1),TRUE,"") ->  | D12: =IF(AND(ISNUMBER(D16),OFFSET(Схема!$M$23,Буфер!D14,)>1),TRUE,"") -> TRUE | E12: =IF(AND(ISNUMBER(E16),OFFSET(Схема!$M$23,Буфер!E14,)>1),TRUE,"") -> TRUE | F12: =IF(AND(ISNUMBER(F16),OFFSET(Схема!$M$23,Буфер!F14,)>1),TRUE,"") ->  | G12: =IF(AND(ISNUMBER(G16),OFFSET(Схема!$M$23,Буфер!G14,)>1),TRUE,"") ->  | H12: =IF(AND(ISNUMBER(H16),OFFSET(Схема!$M$23,Буфер!H14,)>1),TRUE,"") ->  | I12: =IF(AND(ISNUMBER(I16),OFFSET(Схема!$M$23,Буфер!I14,)>1),TRUE,"") ->  | J12: =IF(AND(ISNUMBER(J16),OFFSET(Схема!$M$23,Буфер!J14,)>1),TRUE,"") ->  | K12: =IF(AND(ISNUMBER(K16),OFFSET(Схема!$M$23,Буфер!K14,)>1),TRUE,"") ->  | L12: =IF(AND(ISNUMBER(L16),OFFSET(Схема!$M$23,Буфер!L14,)>1),TRUE,"") ->  | M12: =IF(AND(ISNUMBER(M16),OFFSET(Схема!$M$23,Буфер!M14,)>1),TRUE,"") ->  | N12: =IF(AND(ISNUMBER(N16),OFFSET(Схема!$M$23,Буфер!N14,)>1),TRUE,"") ->  | O12: =IF(AND(ISNUMBER(O16),OFFSET(Схема!$M$23,Буфер!O14,)>1),TRUE,"") ->  | P12: =IF(AND(ISNUMBER(P16),OFFSET(Схема!$M$23,Буфер!P14,)>1),TRUE,"") ->  | Q12: =IF(AND(ISNUMBER(Q16),OFFSET(Схема!$M$23,Буфер!Q14,)>1),TRUE,"") ->  | R12: =IF(AND(ISNUMBER(R16),OFFSET(Схема!$M$23,Буфер!R14,)>1),TRUE,"") ->  | S12: =IF(AND(ISNUMBER(S16),OFFSET(Схема!$M$23,Буфер!S14,)>1),TRUE,"") ->  | T12: =IF(AND(ISNUMBER(T16),OFFSET(Схема!$M$23,Буфер!T14,)>1),TRUE,"") ->  | U12: =IF(AND(ISNUMBER(U16),OFFSET(Схема!$M$23,Буфер!U14,)>1),TRUE,"") -> 
A13: Начальное? | B13: =IF(AND(ISNUMBER(B16),OFFSET(Схема!$M$23,Буфер!B14,)=0),TRUE,"") ->  | C13: =IF(AND(ISNUMBER(C16),OFFSET(Схема!$M$23,Буфер!C14,)=0),TRUE,"") ->  | D13: =IF(AND(ISNUMBER(D16),OFFSET(Схема!$M$23,Буфер!D14,)=0),TRUE,"") ->  | E13: =IF(AND(ISNUMBER(E16),OFFSET(Схема!$M$23,Буфер!E14,)=0),TRUE,"") ->  | F13: =IF(AND(ISNUMBER(F16),OFFSET(Схема!$M$23,Буфер!F14,)=0),TRUE,"") ->  | G13: =IF(AND(ISNUMBER(G16),OFFSET(Схема!$M$23,Буфер!G14,)=0),TRUE,"") ->  | H13: =IF(AND(ISNUMBER(H16),OFFSET(Схема!$M$23,Буфер!H14,)=0),TRUE,"") ->  | I13: =IF(AND(ISNUMBER(I16),OFFSET(Схема!$M$23,Буфер!I14,)=0),TRUE,"") -> TRUE | J13: =IF(AND(ISNUMBER(J16),OFFSET(Схема!$M$23,Буфер!J14,)=0),TRUE,"") -> TRUE | K13: =IF(AND(ISNUMBER(K16),OFFSET(Схема!$M$23,Буфер!K14,)=0),TRUE,"") -> TRUE | L13: =IF(AND(ISNUMBER(L16),OFFSET(Схема!$M$23,Буфер!L14,)=0),TRUE,"") ->  | M13: =IF(AND(ISNUMBER(M16),OFFSET(Схема!$M$23,Буфер!M14,)=0),TRUE,"") ->  | N13: =IF(AND(ISNUMBER(N16),OFFSET(Схема!$M$23,Буфер!N14,)=0),TRUE,"") ->  | O13: =IF(AND(ISNUMBER(O16),OFFSET(Схема!$M$23,Буфер!O14,)=0),TRUE,"") ->  | P13: =IF(AND(ISNUMBER(P16),OFFSET(Схема!$M$23,Буфер!P14,)=0),TRUE,"") ->  | Q13: =IF(AND(ISNUMBER(Q16),OFFSET(Схема!$M$23,Буфер!Q14,)=0),TRUE,"") ->  | R13: =IF(AND(ISNUMBER(R16),OFFSET(Схема!$M$23,Буфер!R14,)=0),TRUE,"") ->  | S13: =IF(AND(ISNUMBER(S16),OFFSET(Схема!$M$23,Буфер!S14,)=0),TRUE,"") ->  | T13: =IF(AND(ISNUMBER(T16),OFFSET(Схема!$M$23,Буфер!T14,)=0),TRUE,"") ->  | U13: =IF(AND(ISNUMBER(U16),OFFSET(Схема!$M$23,Буфер!U14,)=0),TRUE,"") ->  | W13: =OFFSET(W15,BuffClear,,1) -> 1517
B14: 1 | C14: 2 | D14: 3 | E14: 4 | F14: 5 | G14: 6 | H14: 7 | I14: 8 | J14: 9 | K14: 10 | L14: 11 | M14: 12 | N14: 13 | O14: 14 | P14: 15 | Q14: 16 | R14: 17 | S14: 18 | T14: 19 | U14: 20
A15: Час | B15: Буфер #1 | C15: Буфер #2 | D15: Буфер #3 | E15: Буфер #4 | F15: Буфер #5 | G15: Буфер #6 | H15: Буфер #7 | I15: Буфер #8 | J15: Буфер #9 | K15: Буфер #10 | L15: Буфер #11 | M15: Буфер #12 | N15: Буфер #13 | O15: Буфер #14 | P15: Буфер #15 | Q15: Буфер #16 | R15: Буфер #17 | S15: Буфер #18 | T15: Буфер #19 | U15: Буфер #20 | W15: Готовая
A16: 1 | B16: 0 | C16: 0 | D16: 0 | E16: 0 | F16: 0 | G16: 0 | H16: 0 | I16: 47 | J16: 49 | K16: 50 | W16: 0
A17: 2 | B17: 0 | C17: 0 | D17: 0 | E17: 0 | F17: 0 | G17: 49 | H17: 46 | I17: 48 | J17: 49 | K17: 100 | W17: 0
A18: 3 | B18: 38 | C18: 0 | D18: 0 | E18: 46 | F18: 0 | G18: 58 | H18: 47 | I18: 50 | J18: 49 | K18: 103 | W18: 0
A19: 4 | B19: 39 | C19: 38 | D19: 0 | E19: 91 | F19: 0 | G19: 67 | H19: 50 | I19: 49 | J19: 50 | K19: 106 | W19: 0
A20: 5 | B20: 39 | C20: 38 | D20: 38 | E20: 101 | F20: 0 | G20: 77 | H20: 49 | I20: 50 | J20: 50 | K20: 105 | W20: 0
A21: 6 | B21: 40 | C21: 39 | D21: 38 | E21: 112 | F21: 38 | G21: 86 | H21: 49 | I21: 50 | J21: 50 | K21: 106 | W21: 38
A22: 7 | B22: 39 | C22: 37 | D22: 39 | E22: 122 | F22: 75 | G22: 95 | H22: 49 | I22: 49 | J22: 48 | K22: 106 | W22: 75
A23: 8 | B23: 40 | C23: 39 | D23: 36 | E23: 133 | F23: 114 | G23: 102 | H23: 48 | I23: 49 | J23: 49 | K23: 107 | W23: 114
A24: 9 | B24: 40 | C24: 39 | D24: 38 | E24: 141 | F24: 150 | G24: 110 | H24: 48 | I24: 49 | J24: 48 | K24: 109 | W24: 150
A25: 10 | B25: 40 | C25: 40 | D25: 39 | E25: 150 | F25: 187 | G25: 118 | H25: 49 | I25: 49 | J25: 0 | K25: 111 | W25: 187
A26: 11 | B26: 40 | C26: 38 | D26: 40 | E26: 158 | F26: 226 | G26: 78 | H26: 49 | I26: 49 | J26: 0 | K26: 111 | W26: 226
A27: 12 | B27: 39 | C27: 40 | D27: 37 | E27: 167 | F27: 265 | G27: 38 | H27: 49 | I27: 50 | J27: 0 | K27: 112 | W27: 265
A28: 13 | B28: 38 | C28: 39 | D28: 40 | E28: 173 | F28: 302 | G28: 0 | H28: 49 | I28: 49 | J28: 0 | K28: 113 | W28: 302
A29: 14 | B29: 0 | C29: 38 | D29: 39 | E29: 183 | F29: 342 | G29: 0 | H29: 48 | I29: 50 | J29: 0 | K29: 114 | W29: 342
A30: 15 | B30: 0 | C30: 0 | D30: 37 | E30: 191 | F30: 381 | G30: 0 | H30: 50 | I30: 50 | J30: 49 | K30: 116 | W30: 381
A31: 16 | B31: 0 | C31: 0 | D31: 0 | E31: 239 | F31: 418 | G31: 49 | H31: 50 | I31: 50 | J31: 49 | K31: 116 | W31: 418
A32: 17 | B32: 39 | C32: 0 | D32: 0 | E32: 286 | F32: 418 | G32: 57 | H32: 0 | I32: 100 | J32: 50 | K32: 116 | W32: 418
A33: 18 | B33: 40 | C33: 39 | D33: 0 | E33: 286 | F33: 418 | G33: 67 | H33: 0 | I33: 150 | J33: 50 | K33: 166 | W33: 418
A34: 19 | B34: 40 | C34: 40 | D34: 39 | E34: 247 | F34: 418 | G34: 77 | H34: 0 | I34: 199 | J34: 50 | K34: 215 | W34: 418
A35: 20 | B35: 40 | C35: 40 | D35: 40 | E35: 207 | F35: 457 | G35: 87 | H35: 0 | I35: 249 | J35: 50 | K35: 264 | W35: 457
A36: 21 | B36: 40 | C36: 39 | D36: 40 | E36: 167 | F36: 495 | G36: 95 | H36: 50 | I36: 249 | J36: 49 | K36: 264 | W36: 495
A37: 22 | B37: 40 | C37: 40 | D37: 39 | E37: 178 | F37: 534 | G37: 103 | H37: 48 | I37: 248 | J37: 50 | K37: 263 | W37: 534
A38: 23 | B38: 38 | C38: 39 | D38: 40 | E38: 185 | F38: 572 | G38: 112 | H38: 49 | I38: 248 | J38: 50 | K38: 264 | W38: 572
A39: 24 | B39: 40 | C39: 38 | D39: 39 | E39: 194 | F39: 612 | G39: 122 | H39: 49 | I39: 248 | J39: 49 | K39: 264 | W39: 612
A40: 25 | B40: 40 | C40: 40 | D40: 38 | E40: 204 | F40: 651 | G40: 130 | H40: 48 | I40: 248 | J40: 49 | K40: 265 | W40: 651
A41: 26 | B41: 39 | C41: 40 | D41: 39 | E41: 212 | F41: 689 | G41: 137 | H41: 48 | I41: 248 | J41: 49 | K41: 267 | W41: 689
A42: 27 | B42: 39 | C42: 39 | D42: 40 | E42: 218 | F42: 727 | G42: 146 | H42: 49 | I42: 247 | J42: 49 | K42: 268 | W42: 727
A43: 28 | B43: 40 | C43: 39 | D43: 37 | E43: 179 | F43: 767 | G43: 155 | H43: 97 | I43: 247 | J43: 50 | K43: 268 | W43: 767
A44: 29 | B44: 40 | C44: 40 | D44: 39 | E44: 140 | F44: 804 | G44: 164 | H44: 147 | I44: 247 | J44: 48 | K44: 268 | W44: 804
A45: 30 | B45: 38 | C45: 40 | D45: 40 | E45: 100 | F45: 843 | G45: 172 | H45: 196 | I45: 247 | J45: 50 | K45: 268 | W45: 843
A46: 31 | B46: 40 | C46: 37 | D46: 39 | E46: 60 | F46: 883 | G46: 181 | H46: 245 | I46: 247 | J46: 49 | K46: 268 | W46: 883
A47: 32 | B47: 38 | C47: 40 | D47: 37 | E47: 72 | F47: 922 | G47: 190 | H47: 245 | I47: 247 | J47: 50 | K47: 266 | W47: 922
A48: 33 | B48: 38 | C48: 38 | D48: 40 | E48: 81 | F48: 959 | G48: 197 | H48: 245 | I48: 247 | J48: 50 | K48: 265 | W48: 959
A49: 34 | B49: 39 | C49: 38 | D49: 38 | E49: 92 | F49: 999 | G49: 207 | H49: 244 | I49: 245 | J49: 49 | K49: 265 | W49: 999
A50: 35 | B50: 39 | C50: 38 | D50: 37 | E50: 104 | F50: 1036 | G50: 214 | H50: 244 | I50: 245 | J50: 50 | K50: 265 | W50: 1036
A51: 36 | B51: 38 | C51: 38 | D51: 37 | E51: 115 | F51: 1073 | G51: 222 | H51: 244 | I51: 245 | J51: 50 | K51: 265 | W51: 1073
A52: 37 | B52: 39 | C52: 37 | D52: 38 | E52: 125 | F52: 1110 | G52: 228 | H52: 241 | I52: 244 | J52: 49 | K52: 265 | W52: 1110
A53: 38 | B53: 38 | C53: 39 | D53: 36 | E53: 138 | F53: 1147 | G53: 237 | H53: 239 | I53: 244 | J53: 48 | K53: 265 | W53: 1147
A54: 39 | B54: 40 | C54: 38 | D54: 38 | E54: 149 | F54: 1182 | G54: 245 | H54: 239 | I54: 244 | J54: 50 | K54: 265 | W54: 1182
A55: 40 | B55: 40 | C55: 39 | D55: 38 | E55: 161 | F55: 1219 | G55: 255 | H55: 239 | I55: 244 | J55: 50 | K55: 265 | W55: 1219
A56: 41 | B56: 37 | C56: 40 | D56: 37 | E56: 170 | F56: 1256 | G56: 264 | H56: 237 | I56: 244 | J56: 49 | K56: 264 | W56: 1256
A57: 42 | B57: 40 | C57: 36 | D57: 40 | E57: 180 | F57: 1293 | G57: 272 | H57: 236 | I57: 243 | J57: 50 | K57: 263 | W57: 1293
A58: 43 | B58: 38 | C58: 40 | D58: 36 | E58: 193 | F58: 1332 | G58: 281 | H58: 236 | I58: 243 | J58: 50 | K58: 261 | W58: 1332
A59: 44 | B59: 40 | C59: 38 | D59: 39 | E59: 203 | F59: 1368 | G59: 291 | H59: 236 | I59: 243 | J59: 49 | K59: 261 | W59: 1368
A60: 45 | B60: 39 | C60: 40 | D60: 38 | E60: 215 | F60: 1407 | G60: 251 | H60: 235 | I60: 242 | J60: 99 | K60: 211 | W60: 1407
A61: 46 | B61: 38 | C61: 38 | D61: 39 | E61: 224 | F61: 1443 | G61: 261 | H61: 235 | I61: 240 | J61: 99 | K61: 161 | W61: 1443
A62: 47 | B62: 39 | C62: 38 | D62: 36 | E62: 235 | F62: 1481 | G62: 271 | H62: 234 | I62: 240 | J62: 99 | K62: 111 | W62: 1481
A63: 48 | B63: 40 | C63: 38 | D63: 38 | E63: 247 | F63: 1517 | G63: 280 | H63: 234 | I63: 240 | J63: 99 | K63: 111 | W63: 1517

Sheet Брак
A1: Детализация работы оборудования
A2: Брак
A11: =COUNTA(A16:A10006) -> 48
A13: всего | B13: =SUM(OFFSET(B16,,,StatCount)) -> 33 | C13: 17 | D13: 18 | E13: 35 | F13: 17 | G13: 29 | H13: 32 | I13: 22 | J13: 24 | K13: 17 | L13: 0 | M13: 0 | N13: 0 | O13: 0 | P13: 0 | Q13: 0 | R13: 0 | S13: 0 | T13: 0 | U13: 0
A15: Час | B15: Брак #1 | C15: Брак #2 | D15: Брак #3 | E15: Брак #4 | F15: Брак #5 | G15: Брак #6 | H15: Брак #7 | I15: Брак #8 | J15: Брак #9 | K15: Брак #10 | L15: Брак #11 | M15: Брак #12 | N15: Брак #13 | O15: Брак #14 | P15: Брак #15 | Q15: Брак #16 | R15: Брак #17 | S15: Брак #18 | T15: Брак #19 | U15: Брак #20
A16: 1 | B16: 0 | C16: 0 | D16: 0 | E16: 0 | F16: 0 | G16: 0 | H16: 0 | I16: 3 | J16: 1 | K16: 0
A17: 2 | B17: 0 | C17: 0 | D17: 0 | E17: 0 | F17: 0 | G17: 0 | H17: 1 | I17: 2 | J17: 1 | K17: 0
A18: 3 | B18: 2 | C18: 0 | D18: 0 | E18: 0 | F18: 0 | G18: 0 | H18: 1 | I18: 0 | J18: 1 | K18: 1
A19: 4 | B19: 1 | C19: 0 | D19: 0 | E19: 2 | F19: 0 | G19: 0 | H19: 0 | I19: 1 | J19: 0 | K19: 0
A20: 5 | B20: 1 | C20: 1 | D20: 0 | E20: 2 | F20: 0 | G20: 0 | H20: 0 | I20: 0 | J20: 0 | K20: 1
A21: 6 | B21: 0 | C21: 0 | D21: 0 | E21: 0 | F21: 0 | G21: 1 | H21: 1 | I21: 0 | J21: 0 | K21: 0
A22: 7 | B22: 1 | C22: 3 | D22: 0 | E22: 0 | F22: 1 | G22: 1 | H22: 1 | I22: 1 | J22: 2 | K22: 1
A23: 8 | B23: 0 | C23: 0 | D23: 1 | E23: 1 | F23: 0 | G23: 1 | H23: 1 | I23: 1 | J23: 1 | K23: 0
A24: 9 | B24: 0 | C24: 1 | D24: 1 | E24: 1 | F24: 0 | G24: 1 | H24: 1 | I24: 1 | J24: 2 | K24: 0
A25: 10 | B25: 0 | C25: 0 | D25: 0 | E25: 0 | F25: 1 | G25: 0 | H25: 0 | I25: 1 | J25: 0 | K25: 0
A26: 11 | B26: 0 | C26: 2 | D26: 0 | E26: 1 | F26: 0 | G26: 0 | H26: 0 | I26: 1 | J26: 0 | K26: 1
A27: 12 | B27: 1 | C27: 0 | D27: 1 | E27: 2 | F27: 1 | G27: 0 | H27: 0 | I27: 0 | J27: 0 | K27: 0
A28: 13 | B28: 0 | C28: 0 | D28: 0 | E28: 3 | F28: 0 | G28: 0 | H28: 1 | I28: 1 | J28: 0 | K28: 0
A29: 14 | B29: 0 | C29: 0 | D29: 0 | E29: 0 | F29: 0 | G29: 0 | H29: 1 | I29: 0 | J29: 0 | K29: 0
A30: 15 | B30: 0 | C30: 0 | D30: 1 | E30: 2 | F30: 0 | G30: 0 | H30: 0 | I30: 0 | J30: 1 | K30: 0
A31: 16 | B31: 0 | C31: 0 | D31: 0 | E31: 2 | F31: 0 | G31: 0 | H31: 0 | I31: 0 | J31: 1 | K31: 0
A32: 17 | B32: 1 | C32: 0 | D32: 0 | E32: 3 | F32: 0 | G32: 1 | H32: 0 | I32: 0 | J32: 0 | K32: 0
A33: 18 | B33: 0 | C33: 0 | D33: 0 | E33: 0 | F33: 0 | G33: 0 | H33: 0 | I33: 0 | J33: 0 | K33: 0
A34: 19 | B34: 0 | C34: 0 | D34: 0 | E34: 0 | F34: 0 | G34: 0 | H34: 0 | I34: 1 | J34: 0 | K34: 1
A35: 20 | B35: 0 | C35: 0 | D35: 0 | E35: 0 | F35: 0 | G35: 0 | H35: 0 | I35: 0 | J35: 0 | K35: 1
A36: 21 | B36: 0 | C36: 1 | D36: 0 | E36: 0 | F36: 2 | G36: 2 | H36: 0 | I36: 0 | J36: 1 | K36: 0
A37: 22 | B37: 0 | C37: 0 | D37: 0 | E37: 0 | F37: 1 | G37: 1 | H37: 2 | I37: 1 | J37: 0 | K37: 1
A38: 23 | B38: 2 | C38: 1 | D38: 0 | E38: 1 | F38: 1 | G38: 1 | H38: 1 | I38: 0 | J38: 0 | K38: 1
A39: 24 | B39: 0 | C39: 0 | D39: 0 | E39: 1 | F39: 0 | G39: 0 | H39: 1 | I39: 0 | J39: 1 | K39: 1
A40: 25 | B40: 0 | C40: 0 | D40: 0 | E40: 1 | F40: 0 | G40: 1 | H40: 2 | I40: 0 | J40: 1 | K40: 0
A41: 26 | B41: 1 | C41: 0 | D41: 1 | E41: 0 | F41: 0 | G41: 2 | H41: 2 | I41: 0 | J41: 1 | K41: 0
A42: 27 | B42: 1 | C42: 0 | D42: 0 | E42: 2 | F42: 1 | G42: 0 | H42: 1 | I42: 1 | J42: 1 | K42: 1
A43: 28 | B43: 0 | C43: 0 | D43: 2 | E43: 0 | F43: 0 | G43: 0 | H43: 2 | I43: 0 | J43: 0 | K43: 0
A44: 29 | B44: 0 | C44: 0 | D44: 0 | E44: 0 | F44: 0 | G44: 1 | H44: 0 | I44: 0 | J44: 2 | K44: 0
A45: 30 | B45: 2 | C45: 0 | D45: 0 | E45: 0 | F45: 0 | G45: 0 | H45: 1 | I45: 0 | J45: 0 | K45: 0
A46: 31 | B46: 0 | C46: 1 | D46: 1 | E46: 0 | F46: 0 | G46: 1 | H46: 1 | I46: 0 | J46: 1 | K46: 0
A47: 32 | B47: 2 | C47: 0 | D47: 0 | E47: 1 | F47: 0 | G47: 0 | H47: 0 | I47: 0 | J47: 0 | K47: 2
A48: 33 | B48: 2 | C48: 0 | D48: 0 | E48: 1 | F48: 0 | G48: 3 | H48: 0 | I48: 0 | J48: 0 | K48: 1
A49: 34 | B49: 1 | C49: 0 | D49: 0 | E49: 1 | F49: 0 | G49: 0 | H49: 1 | I49: 2 | J49: 1 | K49: 0
A50: 35 | B50: 1 | C50: 1 | D50: 1 | E50: 0 | F50: 1 | G50: 2 | H50: 0 | I50: 0 | J50: 0 | K50: 0
A51: 36 | B51: 2 | C51: 1 | D51: 1 | E51: 1 | F51: 0 | G51: 2 | H51: 0 | I51: 0 | J51: 0 | K51: 0
A52: 37 | B52: 1 | C52: 1 | D52: 0 | E52: 2 | F52: 0 | G52: 4 | H52: 3 | I52: 1 | J52: 1 | K52: 0
A53: 38 | B53: 2 | C53: 0 | D53: 1 | E53: 0 | F53: 1 | G53: 0 | H53: 2 | I53: 0 | J53: 2 | K53: 0
A54: 39 | B54: 0 | C54: 0 | D54: 1 | E54: 0 | F54: 1 | G54: 0 | H54: 0 | I54: 0 | J54: 0 | K54: 0
A55: 40 | B55: 0 | C55: 1 | D55: 0 | E55: 0 | F55: 1 | G55: 0 | H55: 0 | I55: 0 | J55: 0 | K55: 0
A56: 41 | B56: 3 | C56: 0 | D56: 2 | E56: 2 | F56: 1 | G56: 1 | H56: 2 | I56: 0 | J56: 1 | K56: 1
A57: 42 | B57: 0 | C57: 1 | D57: 0 | E57: 0 | F57: 0 | G57: 1 | H57: 1 | I57: 1 | J57: 0 | K57: 1
A58: 43 | B58: 2 | C58: 0 | D58: 0 | E58: 1 | F58: 1 | G58: 1 | H58: 0 | I58: 0 | J58: 0 | K58: 2
A59: 44 | B59: 0 | C59: 0 | D59: 1 | E59: 0 | F59: 0 | G59: 0 | H59: 0 | I59: 0 | J59: 1 | K59: 0
A60: 45 | B60: 1 | C60: 0 | D60: 0 | E60: 0 | F60: 0 | G60: 0 | H60: 1 | I60: 1 | J60: 0 | K60: 0
A61: 46 | B61: 2 | C61: 1 | D61: 1 | E61: 1 | F61: 2 | G61: 0 | H61: 0 | I61: 2 | J61: 0 | K61: 0
A62: 47 | B62: 1 | C62: 0 | D62: 2 | E62: 1 | F62: 1 | G62: 0 | H62: 1 | I62: 0 | J62: 0 | K62: 0
A63: 48 | B63: 0 | C63: 1 | D63: 0 | E63: 0 | F63: 0 | G63: 1 | H63: 0 | I63: 0 | J63: 0 | K63: 0

Sheet Работа
A1: Детализация работы оборудования
A2: Состояние оборудования (ИСТИНА - работает, ЛОЖЬ - поломка)
A8: суммируем сколько не было произведено из-за поломки (если даже буфер был пустой)
A9: всего потерь, шт | B9: =B13*IF(StandartEqSettingsFlag,Оборудование!$B$5,OFFSET(Оборудование!$B$19,Буфер!B14-1,,)) -> 0 | C9: =C13*OFFSET(Оборудование!$B$19,Буфер!C14-1,,) -> 0 | D9: =D13*OFFSET(Оборудование!$B$19,Буфер!D14-1,,) -> 0 | E9: =E13*OFFSET(Оборудование!$B$19,Буфер!E14-1,,) -> 200 | F9: =F13*OFFSET(Оборудование!$B$19,Буфер!F14-1,,) -> 0 | G9: =G13*OFFSET(Оборудование!$B$19,Буфер!G14-1,,) -> 0 | H9: =H13*OFFSET(Оборудование!$B$19,Буфер!H14-1,,) -> 200 | I9: =I13*OFFSET(Оборудование!$B$19,Буфер!I14-1,,) -> 0 | J9: =J13*OFFSET(Оборудование!$B$19,Буфер!J14-1,,) -> 250 | K9: =K13*OFFSET(Оборудование!$B$19,Буфер!K14-1,,) -> 150 | L9: =L13*OFFSET(Оборудование!$B$19,Буфер!L14-1,,) -> 0 | M9: =M13*OFFSET(Оборудование!$B$19,Буфер!M14-1,,) -> 0 | N9: =N13*OFFSET(Оборудование!$B$19,Буфер!N14-1,,) -> 0 | O9: =O13*OFFSET(Оборудование!$B$19,Буфер!O14-1,,) -> 0 | P9: =P13*OFFSET(Оборудование!$B$19,Буфер!P14-1,,) -> 0 | Q9: =Q13*OFFSET(Оборудование!$B$19,Буфер!Q14-1,,) -> 0 | R9: =R13*OFFSET(Оборудование!$B$19,Буфер!R14-1,,) -> 0 | S9: =S13*OFFSET(Оборудование!$B$19,Буфер!S14-1,,) -> 0 | T9: =T13*OFFSET(Оборудование!$B$19,Буфер!T14-1,,) -> 0 | U9: =U13*OFFSET(Оборудование!$B$19,Буфер!U14-1,,) -> 0
A11: =COUNTA(A16:A10006) -> 48
A13: всего простоев, ч | B13: =COUNTIF(OFFSET(B16,,,WorkClear),FALSE) -> 0 | C13: 0 | D13: 0 | E13: 4 | F13: 0 | G13: 0 | H13: 4 | I13: 0 | J13: 5 | K13: 3 | L13: 0 | M13: 0 | N13: 0 | O13: 0 | P13: 0 | Q13: 0 | R13: 0 | S13: 0 | T13: 0 | U13: 0
A15: Час | B15: Работа #1 | C15: Работа #2 | D15: Работа #3 | E15: Работа #4 | F15: Работа #5 | G15: Работа #6 | H15: Работа #7 | I15: Работа #8 | J15: Работа #9 | K15: Работа #10 | L15: Работа #11 | M15: Работа #12 | N15: Работа #13 | O15: Работа #14 | P15: Работа #15 | Q15: Работа #16 | R15: Работа #17 | S15: Работа #18 | T15: Работа #19 | U15: Работа #20
A16: 1 | B16: TRUE | C16: TRUE | D16: TRUE | E16: TRUE | F16: TRUE | G16: TRUE | H16: TRUE | I16: TRUE | J16: TRUE | K16: TRUE
A17: 2 | B17: TRUE | C17: TRUE | D17: TRUE | E17: TRUE | F17: TRUE | G17: TRUE | H17: TRUE | I17: TRUE | J17: TRUE | K17: TRUE
A18: 3 | B18: TRUE | C18: TRUE | D18: TRUE | E18: TRUE | F18: TRUE | G18: TRUE | H18: TRUE | I18: TRUE | J18: TRUE | K18: TRUE
A19: 4 | B19: TRUE | C19: TRUE | D19: TRUE | E19: TRUE | F19: TRUE | G19: TRUE | H19: TRUE | I19: TRUE | J19: TRUE | K19: TRUE
A20: 5 | B20: TRUE | C20: TRUE | D20: TRUE | E20: TRUE | F20: TRUE | G20: TRUE | H20: TRUE | I20: TRUE | J20: TRUE | K20: TRUE
A21: 6 | B21: TRUE | C21: TRUE | D21: TRUE | E21: TRUE | F21: TRUE | G21: TRUE | H21: TRUE | I21: TRUE | J21: TRUE | K21: TRUE
A22: 7 | B22: TRUE | C22: TRUE | D22: TRUE | E22: TRUE | F22: TRUE | G22: TRUE | H22: TRUE | I22: TRUE | J22: TRUE | K22: TRUE
A23: 8 | B23: TRUE | C23: TRUE | D23: TRUE | E23: TRUE | F23: TRUE | G23: TRUE | H23: TRUE | I23: TRUE | J23: TRUE | K23: TRUE
A24: 9 | B24: TRUE | C24: TRUE | D24: TRUE | E24: TRUE | F24: TRUE | G24: TRUE | H24: TRUE | I24: TRUE | J24: TRUE | K24: TRUE
A25: 10 | B25: TRUE | C25: TRUE | D25: TRUE | E25: TRUE | F25: TRUE | G25: TRUE | H25: TRUE | I25: TRUE | J25: FALSE | K25: TRUE
A26: 11 | B26: TRUE | C26: TRUE | D26: TRUE | E26: TRUE | F26: TRUE | G26: TRUE | H26: TRUE | I26: TRUE | J26: FALSE | K26: TRUE
A27: 12 | B27: TRUE | C27: TRUE | D27: TRUE | E27: TRUE | F27: TRUE | G27: TRUE | H27: TRUE | I27: TRUE | J27: FALSE | K27: TRUE
A28: 13 | B28: TRUE | C28: TRUE | D28: TRUE | E28: TRUE | F28: TRUE | G28: TRUE | H28: TRUE | I28: TRUE | J28: FALSE | K28: TRUE
A29: 14 | B29: TRUE | C29: TRUE | D29: TRUE | E29: TRUE | F29: TRUE | G29: TRUE | H29: TRUE | I29: TRUE | J29: FALSE | K29: TRUE
A30: 15 | B30: TRUE | C30: TRUE | D30: TRUE | E30: TRUE | F30: TRUE | G30: TRUE | H30: TRUE | I30: TRUE | J30: TRUE | K30: TRUE
A31: 16 | B31: TRUE | C31: TRUE | D31: TRUE | E31: TRUE | F31: TRUE | G31: TRUE | H31: TRUE | I31: TRUE | J31: TRUE | K31: TRUE
A32: 17 | B32: TRUE | C32: TRUE | D32: TRUE | E32: TRUE | F32: TRUE | G32: TRUE | H32: FALSE | I32: TRUE | J32: TRUE | K32: TRUE
A33: 18 | B33: TRUE | C33: TRUE | D33: TRUE | E33: TRUE | F33: TRUE | G33: TRUE | H33: FALSE | I33: TRUE | J33: TRUE | K33: TRUE
A34: 19 | B34: TRUE | C34: TRUE | D34: TRUE | E34: TRUE | F34: TRUE | G34: TRUE | H34: FALSE | I34: TRUE | J34: TRUE | K34: TRUE
A35: 20 | B35: TRUE | C35: TRUE | D35: TRUE | E35: TRUE | F35: TRUE | G35: TRUE | H35: FALSE | I35: TRUE | J35: TRUE | K35: TRUE
A36: 21 | B36: TRUE | C36: TRUE | D36: TRUE | E36: TRUE | F36: TRUE | G36: TRUE | H36: TRUE | I36: TRUE | J36: TRUE | K36: TRUE
A37: 22 | B37: TRUE | C37: TRUE | D37: TRUE | E37: TRUE | F37: TRUE | G37: TRUE | H37: TRUE | I37: TRUE | J37: TRUE | K37: TRUE
A38: 23 | B38: TRUE | C38: TRUE | D38: TRUE | E38: TRUE | F38: TRUE | G38: TRUE | H38: TRUE | I38: TRUE | J38: TRUE | K38: TRUE
A39: 24 | B39: TRUE | C39: TRUE | D39: TRUE | E39: TRUE | F39: TRUE | G39: TRUE | H39: TRUE | I39: TRUE | J39: TRUE | K39: TRUE
A40: 25 | B40: TRUE | C40: TRUE | D40: TRUE | E40: TRUE | F40: TRUE | G40: TRUE | H40: TRUE | I40: TRUE | J40: TRUE | K40: TRUE
A41: 26 | B41: TRUE | C41: TRUE | D41: TRUE | E41: TRUE | F41: TRUE | G41: TRUE | H41: TRUE | I41: TRUE | J41: TRUE | K41: TRUE
A42: 27 | B42: TRUE | C42: TRUE | D42: TRUE | E42: TRUE | F42: TRUE | G42: TRUE | H42: TRUE | I42: TRUE | J42: TRUE | K42: TRUE
A43: 28 | B43: TRUE | C43: TRUE | D43: TRUE | E43: FALSE | F43: TRUE | G43: TRUE | H43: TRUE | I43: TRUE | J43: TRUE | K43: TRUE
A44: 29 | B44: TRUE | C44: TRUE | D44: TRUE | E44: FALSE | F44: TRUE | G44: TRUE | H44: TRUE | I44: TRUE | J44: TRUE | K44: TRUE
A45: 30 | B45: TRUE | C45: TRUE | D45: TRUE | E45: FALSE | F45: TRUE | G45: TRUE | H45: TRUE | I45: TRUE | J45: TRUE | K45: TRUE
A46: 31 | B46: TRUE | C46: TRUE | D46: TRUE | E46: FALSE | F46: TRUE | G46: TRUE | H46: TRUE | I46: TRUE | J46: TRUE | K46: TRUE
A47: 32 | B47: TRUE | C47: TRUE | D47: TRUE | E47: TRUE | F47: TRUE | G47: TRUE | H47: TRUE | I47: TRUE | J47: TRUE | K47: TRUE
A48: 33 | B48: TRUE | C48: TRUE | D48: TRUE | E48: TRUE | F48: TRUE | G48: TRUE | H48: TRUE | I48: TRUE | J48: TRUE | K48: TRUE
A49: 34 | B49: TRUE | C49: TRUE | D49: TRUE | E49: TRUE | F49: TRUE | G49: TRUE | H49: TRUE | I49: TRUE | J49: TRUE | K49: TRUE
A50: 35 | B50: TRUE | C50: TRUE | D50: TRUE | E50: TRUE | F50: TRUE | G50: TRUE | H50: TRUE | I50: TRUE | J50: TRUE | K50: TRUE
A51: 36 | B51: TRUE | C51: TRUE | D51: TRUE | E51: TRUE | F51: TRUE | G51: TRUE | H51: TRUE | I51: TRUE | J51: TRUE | K51: TRUE
A52: 37 | B52: TRUE | C52: TRUE | D52: TRUE | E52: TRUE | F52: TRUE | G52: TRUE | H52: TRUE | I52: TRUE | J52: TRUE | K52: TRUE
A53: 38 | B53: TRUE | C53: TRUE | D53: TRUE | E53: TRUE | F53: TRUE | G53: TRUE | H53: TRUE | I53: TRUE | J53: TRUE | K53: TRUE
A54: 39 | B54: TRUE | C54: TRUE | D54: TRUE | E54: TRUE | F54: TRUE | G54: TRUE | H54: TRUE | I54: TRUE | J54: TRUE | K54: TRUE
A55: 40 | B55: TRUE | C55: TRUE | D55: TRUE | E55: TRUE | F55: TRUE | G55: TRUE | H55: TRUE | I55: TRUE | J55: TRUE | K55: TRUE
A56: 41 | B56: TRUE | C56: TRUE | D56: TRUE | E56: TRUE | F56: TRUE | G56: TRUE | H56: TRUE | I56: TRUE | J56: TRUE | K56: TRUE
A57: 42 | B57: TRUE | C57: TRUE | D57: TRUE | E57: TRUE | F57: TRUE | G57: TRUE | H57: TRUE | I57: TRUE | J57: TRUE | K57: TRUE
A58: 43 | B58: TRUE | C58: TRUE | D58: TRUE | E58: TRUE | F58: TRUE | G58: TRUE | H58: TRUE | I58: TRUE | J58: TRUE | K58: TRUE
A59: 44 | B59: TRUE | C59: TRUE | D59: TRUE | E59: TRUE | F59: TRUE | G59: TRUE | H59: TRUE | I59: TRUE | J59: TRUE | K59: TRUE
A60: 45 | B60: TRUE | C60: TRUE | D60: TRUE | E60: TRUE | F60: TRUE | G60: TRUE | H60: TRUE | I60: TRUE | J60: TRUE | K60: FALSE
A61: 46 | B61: TRUE | C61: TRUE | D61: TRUE | E61: TRUE | F61: TRUE | G61: TRUE | H61: TRUE | I61: TRUE | J61: TRUE | K61: FALSE
A62: 47 | B62: TRUE | C62: TRUE | D62: TRUE | E62: TRUE | F62: TRUE | G62: TRUE | H62: TRUE | I62: TRUE | J62: TRUE | K62: FALSE
A63: 48 | B63: TRUE | C63: TRUE | D63: TRUE | E63: TRUE | F63: TRUE | G63: TRUE | H63: TRUE | I63: TRUE | J63: TRUE | K63: TRUE

Sheet Потери.ПустойБуфер
A1: Детализация работы оборудования
A2: Потери из-за пустого питающего буфера
A11: =COUNTA(A16:A10006) -> 48
A13: всего | B13: =SUM(OFFSET(B16,,,LossesBufferClear)) -> 202 | C13: 755 | D13: 810 | E13: 278 | F13: 866 | G13: 323 | H13: 62 | I13: 0 | J13: 0 | K13: 0 | L13: 0 | M13: 0 | N13: 0 | O13: 0 | P13: 0 | Q13: 0 | R13: 0 | S13: 0 | T13: 0 | U13: 0
A15: Час | B15: Брак #1 | C15: Брак #2 | D15: Брак #3 | E15: Брак #4 | F15: Брак #5 | G15: Брак #6 | H15: Брак #7 | I15: Брак #8 | J15: Брак #9 | K15: Брак #10 | L15: Брак #11 | M15: Брак #12 | N15: Брак #13 | O15: Брак #14 | P15: Брак #15 | Q15: Брак #16 | R15: Брак #17 | S15: Брак #18 | T15: Брак #19 | U15: Брак #20
A16: 1 | B16: 40 | C16: 50 | D16: 50 | E16: 50 | F16: 50 | G16: 50 | H16: 50 | I16: 0 | J16: 0 | K16: 0
A17: 2 | B17: 40 | C17: 50 | D17: 50 | E17: 50 | F17: 50 | G17: 1 | H17: 3 | I17: 0 | J17: 0 | K17: 0
A18: 3 | B18: 0 | C18: 50 | D18: 50 | E18: 4 | F18: 50 | G18: 1 | H18: 2 | I18: 0 | J18: 0 | K18: 0
A19: 4 | B19: 0 | C19: 12 | D19: 50 | E19: 3 | F19: 50 | G19: 1 | H19: 0 | I19: 0 | J19: 0 | K19: 0
A20: 5 | B20: 0 | C20: 11 | D20: 12 | E20: 0 | F20: 50 | G20: 0 | H20: 1 | I20: 0 | J20: 0 | K20: 0
A21: 6 | B21: 0 | C21: 11 | D21: 12 | E21: 1 | F21: 12 | G21: 0 | H21: 0 | I21: 0 | J21: 0 | K21: 0
A22: 7 | B22: 0 | C22: 10 | D22: 11 | E22: 1 | F22: 12 | G22: 0 | H22: 0 | I22: 0 | J22: 0 | K22: 0
A23: 8 | B23: 0 | C23: 11 | D23: 13 | E23: 1 | F23: 11 | G23: 2 | H23: 1 | I23: 0 | J23: 0 | K23: 0
A24: 9 | B24: 0 | C24: 10 | D24: 11 | E24: 2 | F24: 14 | G24: 1 | H24: 1 | I24: 0 | J24: 0 | K24: 0
A25: 10 | B25: 0 | C25: 10 | D25: 11 | E25: 2 | F25: 12 | G25: 2 | H25: 1 | I25: 0 | J25: 0 | K25: 0
A26: 11 | B26: 0 | C26: 10 | D26: 10 | E26: 1 | F26: 11 | G26: 50 | H26: 1 | I26: 0 | J26: 0 | K26: 0
A27: 12 | B27: 0 | C27: 10 | D27: 12 | E27: 1 | F27: 10 | G27: 50 | H27: 1 | I27: 0 | J27: 0 | K27: 0
A28: 13 | B28: 2 | C28: 11 | D28: 10 | E28: 1 | F28: 13 | G28: 50 | H28: 0 | I28: 0 | J28: 0 | K28: 0
A29: 14 | B29: 40 | C29: 12 | D29: 11 | E29: 1 | F29: 10 | G29: 50 | H29: 1 | I29: 0 | J29: 0 | K29: 0
A30: 15 | B30: 40 | C30: 50 | D30: 12 | E30: 2 | F30: 11 | G30: 50 | H30: 0 | I30: 0 | J30: 0 | K30: 0
A31: 16 | B31: 40 | C31: 50 | D31: 50 | E31: 0 | F31: 13 | G31: 1 | H31: 0 | I31: 0 | J31: 0 | K31: 0
A32: 17 | B32: 0 | C32: 50 | D32: 50 | E32: 0 | F32: 50 | G32: 1 | H32: 0 | I32: 0 | J32: 0 | K32: 0
A33: 18 | B33: 0 | C33: 11 | D33: 50 | E33: 0 | F33: 50 | G33: 0 | H33: 0 | I33: 0 | J33: 0 | K33: 0
A34: 19 | B34: 0 | C34: 10 | D34: 11 | E34: 50 | F34: 50 | G34: 0 | H34: 0 | I34: 0 | J34: 0 | K34: 0
A35: 20 | B35: 0 | C35: 10 | D35: 10 | E35: 50 | F35: 11 | G35: 0 | H35: 0 | I35: 0 | J35: 0 | K35: 0
A36: 21 | B36: 0 | C36: 10 | D36: 10 | E36: 50 | F36: 10 | G36: 0 | H36: 0 | I36: 0 | J36: 0 | K36: 0
A37: 22 | B37: 0 | C37: 10 | D37: 11 | E37: 0 | F37: 10 | G37: 1 | H37: 0 | I37: 0 | J37: 0 | K37: 0
A38: 23 | B38: 0 | C38: 10 | D38: 10 | E38: 2 | F38: 11 | G38: 0 | H38: 0 | I38: 0 | J38: 0 | K38: 0
A39: 24 | B39: 0 | C39: 12 | D39: 11 | E39: 1 | F39: 10 | G39: 0 | H39: 0 | I39: 0 | J39: 0 | K39: 0
A40: 25 | B40: 0 | C40: 10 | D40: 12 | E40: 1 | F40: 11 | G40: 1 | H40: 0 | I40: 0 | J40: 0 | K40: 0
A41: 26 | B41: 0 | C41: 10 | D41: 10 | E41: 2 | F41: 12 | G41: 1 | H41: 0 | I41: 0 | J41: 0 | K41: 0
A42: 27 | B42: 0 | C42: 11 | D42: 10 | E42: 2 | F42: 11 | G42: 1 | H42: 0 | I42: 0 | J42: 0 | K42: 0
A43: 28 | B43: 0 | C43: 11 | D43: 11 | E43: 0 | F43: 10 | G43: 1 | H43: 0 | I43: 0 | J43: 0 | K43: 0
A44: 29 | B44: 0 | C44: 10 | D44: 11 | E44: 0 | F44: 13 | G44: 0 | H44: 0 | I44: 0 | J44: 0 | K44: 0
A45: 30 | B45: 0 | C45: 10 | D45: 10 | E45: 0 | F45: 11 | G45: 2 | H45: 0 | I45: 0 | J45: 0 | K45: 0
A46: 31 | B46: 0 | C46: 12 | D46: 10 | E46: 0 | F46: 10 | G46: 0 | H46: 0 | I46: 0 | J46: 0 | K46: 0
A47: 32 | B47: 0 | C47: 10 | D47: 13 | E47: 0 | F47: 11 | G47: 1 | H47: 0 | I47: 0 | J47: 0 | K47: 0
A48: 33 | B48: 0 | C48: 12 | D48: 10 | E48: 0 | F48: 13 | G48: 0 | H48: 0 | I48: 0 | J48: 0 | K48: 0
A49: 34 | B49: 0 | C49: 12 | D49: 12 | E49: 0 | F49: 10 | G49: 0 | H49: 0 | I49: 0 | J49: 0 | K49: 0
A50: 35 | B50: 0 | C50: 11 | D50: 12 | E50: 0 | F50: 12 | G50: 1 | H50: 0 | I50: 0 | J50: 0 | K50: 0
A51: 36 | B51: 0 | C51: 11 | D51: 12 | E51: 0 | F51: 13 | G51: 0 | H51: 0 | I51: 0 | J51: 0 | K51: 0
A52: 37 | B52: 0 | C52: 12 | D52: 12 | E52: 0 | F52: 13 | G52: 0 | H52: 0 | I52: 0 | J52: 0 | K52: 0
A53: 38 | B53: 0 | C53: 11 | D53: 13 | E53: 0 | F53: 12 | G53: 1 | H53: 0 | I53: 0 | J53: 0 | K53: 0
A54: 39 | B54: 0 | C54: 12 | D54: 11 | E54: 0 | F54: 14 | G54: 2 | H54: 0 | I54: 0 | J54: 0 | K54: 0
A55: 40 | B55: 0 | C55: 10 | D55: 12 | E55: 0 | F55: 12 | G55: 0 | H55: 0 | I55: 0 | J55: 0 | K55: 0
A56: 41 | B56: 0 | C56: 10 | D56: 11 | E56: 0 | F56: 12 | G56: 0 | H56: 0 | I56: 0 | J56: 0 | K56: 0
A57: 42 | B57: 0 | C57: 13 | D57: 10 | E57: 0 | F57: 13 | G57: 1 | H57: 0 | I57: 0 | J57: 0 | K57: 0
A58: 43 | B58: 0 | C58: 10 | D58: 14 | E58: 0 | F58: 10 | G58: 0 | H58: 0 | I58: 0 | J58: 0 | K58: 0
A59: 44 | B59: 0 | C59: 12 | D59: 10 | E59: 0 | F59: 14 | G59: 0 | H59: 0 | I59: 0 | J59: 0 | K59: 0
A60: 45 | B60: 0 | C60: 10 | D60: 12 | E60: 0 | F60: 11 | G60: 0 | H60: 0 | I60: 0 | J60: 0 | K60: 0
A61: 46 | B61: 0 | C61: 11 | D61: 10 | E61: 0 | F61: 12 | G61: 0 | H61: 0 | I61: 0 | J61: 0 | K61: 0
A62: 47 | B62: 0 | C62: 12 | D62: 12 | E62: 0 | F62: 11 | G62: 0 | H62: 0 | I62: 0 | J62: 0 | K62: 0
A63: 48 | B63: 0 | C63: 11 | D63: 12 | E63: 0 | F63: 14 | G63: 0 | H63: 0 | I63: 0 | J63: 0 | K63: 0

Sheet EXCEL2.RU
A1: EXCEL2.RU - профессиональные приемы для всех >>>
A2: Хорошая новость! Большинство задач, которые Вы хотите решить с помощью MS EXCEL – уже давно решены! На нашем сайте Вы найдете решения множества из наиболее часто встречающихся задач. Сайт содержит более 500 качественно оформленных статей с файлами примеров.
A3: Миссия нашего сайта - превратить Вашу работу в MS EXCEL в приятное времяпрепровождение и ускорить решение Ваших задач. Мы постоянно работаем над содержанием и оформлением нашего сайта и благодарим активных пользователей за поддержку и неоценимую помощь в нашей работе.
